Workbook

Sheet INGRESO DE DATOS
A1: COTIZACION DE SEGURO MEDICO INTERNACIONAL
B2: Tarifas efectivas a partir del 1ro de enero de 2021
A6: 1. INGRESE LOS DATOS DEL PROPUESTO ASEGURADO:
C8: Nombre del Asegurado Principal : | D8: Nombre
D10: Número de Adultos: | G10: 2 | H10: Número de Hijos: | J10: 2
F12: Edad de Titular: | G12: 32 | H12: Edad de Cónyuge: | J12: 46
F14: Descuento: | G14: 0
A16: 2. INGRESE EL NOMBRE DE LA AGENCIA ASESORA:
C18: Intermediario: | D18: Agente / Agencia
A21: 3. ESCOJA EL PRODUCTO PARA VISUALIZAR LA COTIZACION RESPECTIVA:

Sheet Essential Care
D1: Cotización de Seguro Médico Internacional
A2: BUPA ESSENTIAL CARE | D2: Producto: Bupa Essential Care
D6: Nombre del Asegurado: | E6: =+'INGRESO DE DATOS'!$D$8 -> Nombre
D8: Intermediario: | E8: =+'INGRESO DE DATOS'!$D$18 -> Agente / Agencia
D10: Fecha: | E10: =+TODAY() -> 2021-02-25 | G10: =IF('INGRESO DE DATOS'!G14>0,"Descuento","") ->  | H10: =IF('INGRESO DE DATOS'!G14>0,'INGRESO DE DATOS'!G14,"") -> 
E12: Numero de Adultos: | F12: =+'INGRESO DE DATOS'!G10 -> 2 | H12: Edad de Titular: | I12: =+'INGRESO DE DATOS'!$G$12 -> 32
E14: Numero de Hijos: | F14: =+'INGRESO DE DATOS'!$J$10 -> 2 | H14: Edad de Conyuge: | I14: =+'INGRESO DE DATOS'!$J$12 -> 46
G17: TRUE
D18: Deducibles
F19: PLAN 1 | G19: PLAN 2 | H19: PLAN 3 | I19: PLAN 4
D20: Dentro del pais de residencia | F20: 0 | G20: 0 | H20: 500 | I20: 2000
D21: Fuera del pais de residencia | F21: 1000 | G21: 2000 | H21: 3000 | I21: 5000
D23: Tarifas Anuales
D24: Prima Titular | F24: =(VLOOKUP($I$12,Tablas!$A$6:$H$29,4,TRUE))*0.9 -> 1646.1 | G24: =(VLOOKUP($I$12,Tablas!$A$6:$H$29,5,TRUE))*0.9 -> 1494.9 | H24: =(VLOOKUP($I$12,Tablas!$A$6:$H$29,6,TRUE))*0.9 -> 1358.1 | I24: =(VLOOKUP($I$12,Tablas!$A$6:$H$29,7,TRUE))*0.9 -> 1170.9
D25: Prima Cónyuge | F25: =(IF($F$12=1,0,(VLOOKUP($I$14,Tablas!$A$6:$H$29,4,TRUE))))*0.9 -> 2604.6 | G25: =(IF($F$12=1,0,(VLOOKUP($I$14,Tablas!$A$6:$H$29,5,TRUE))))*0.9 -> 2365.2 | H25: =(IF($F$12=1,0,(VLOOKUP($I$14,Tablas!$A$6:$H$29,6,TRUE))))*0.9 -> 2149.2 | I25: =(IF($F$12=1,0,(VLOOKUP($I$14,Tablas!$A$6:$H$29,7,TRUE))))*0.9 -> 1852.2
D26: Primas Hijos | F26: =(IF($F$14=0,0,(VLOOKUP($F$14,Tablas!$A$30:$H$32,4,TRUE))))*0.9 -> 711 | G26: =(IF($F$14=0,0,(VLOOKUP($F$14,Tablas!$A$30:$H$32,5,TRUE))))*0.9 -> 645.3 | H26: =(IF($F$14=0,0,(VLOOKUP($F$14,Tablas!$A$30:$H$32,6,TRUE))))*0.9 -> 586.8 | I26: =(IF($F$14=0,0,(VLOOKUP($F$14,Tablas!$A$30:$H$32,7,TRUE))))*0.9 -> 505.8
D27: PRIMA NETA | F27: =SUM(F24:F26) -> 4961.7 | G27: =SUM(G24:G26) -> 4505.4 | H27: =SUM(H24:H26) -> 4094.1 | I27: =SUM(I24:I26) -> 3528.9
D28: =IF('INGRESO DE DATOS'!G14>0,"Descuento","") ->  | F28: =IF('INGRESO DE DATOS'!$G$14>0,-(F24+F25+F26)*'INGRESO DE DATOS'!$G$14,0) -> 0 | G28: =IF('INGRESO DE DATOS'!$G$14>0,-(G24+G25+G26)*'INGRESO DE DATOS'!$G$14,0) -> 0 | H28: =IF('INGRESO DE DATOS'!$G$14>0,-(H24+H25+H26)*'INGRESO DE DATOS'!$G$14,0) -> 0 | I28: =IF('INGRESO DE DATOS'!$G$14>0,-(I24+I25+I26)*'INGRESO DE DATOS'!$G$14,0) -> 0
D29: Costo Administrativo Anual | F29: 75 | G29: 75 | H29: 75 | I29: 75
D30: IVA (12%) | F30: =+(F27+F28+F29)*0% -> 0 | G30: =+(G27+G28+G29)*0% -> 0 | H30: 0 | I30: 0
D31: TOTAL | F31: =SUM(F27:F30) -> 5036.7 | G31: =SUM(G27:G30) -> 4580.4 | H31: 4169.1 | I31: 3603.9
D33: Tarifas Semestrales
D34: Prima Titular | F34: =VLOOKUP($I$12,Tablas!$A$39:$H$62,4,TRUE) -> 914.5 | G34: =VLOOKUP($I$12,Tablas!$A$39:$H$62,5,TRUE) -> 830.5 | H34: =VLOOKUP($I$12,Tablas!$A$39:$H$62,6,TRUE) -> 754.5 | I34: =VLOOKUP($I$12,Tablas!$A$39:$H$62,7,TRUE) -> 650.5
D35: Prima Cónyuge | F35: =IF($F$12=1,0,(VLOOKUP($I$14,Tablas!$A$39:$H$62,4,TRUE))) -> 1447 | G35: =IF($F$12=1,0,(VLOOKUP($I$14,Tablas!$A$39:$H$62,5,TRUE))) -> 1314 | H35: =IF($F$12=1,0,(VLOOKUP($I$14,Tablas!$A$39:$H$62,6,TRUE))) -> 1194 | I35: =IF($F$12=1,0,(VLOOKUP($I$14,Tablas!$A$39:$H$62,7,TRUE))) -> 1029
D36: Primas Hijos | F36: =IF($F$14=0,0,(VLOOKUP($F$14,Tablas!$A$63:$H$65,4,TRUE))) -> 395 | G36: =IF($F$14=0,0,(VLOOKUP($F$14,Tablas!$A$63:$H$65,5,TRUE))) -> 358.5 | H36: =IF($F$14=0,0,(VLOOKUP($F$14,Tablas!$A$63:$H$65,6,TRUE))) -> 326 | I36: =IF($F$14=0,0,(VLOOKUP($F$14,Tablas!$A$63:$H$65,7,TRUE))) -> 281
D37: PRIMA NETA | F37: =SUM(F34:F36) -> 2756.5 | G37: =SUM(G34:G36) -> 2503 | H37: =SUM(H34:H36) -> 2274.5 | I37: =SUM(I34:I36) -> 1960.5
D38: =IF('INGRESO DE DATOS'!G14>0,"Descuento","") ->  | F38: =IF('INGRESO DE DATOS'!$G$14>0,-(F34+F35+F36)*'INGRESO DE DATOS'!$G$14,0) -> 0 | G38: =IF('INGRESO DE DATOS'!$G$14>0,-(G34+G35+G36)*'INGRESO DE DATOS'!$G$14,0) -> 0 | H38: =IF('INGRESO DE DATOS'!$G$14>0,-(H34+H35+H36)*'INGRESO DE DATOS'!$G$14,0) -> 0 | I38: =IF('INGRESO DE DATOS'!$G$14>0,-(I34+I35+I36)*'INGRESO DE DATOS'!$G$14,0) -> 0
D39: Costo Administrativo Anual | F39: 75 | G39: 75 | H39: 75 | I39: 75
D40: IVA (12%) | F40: =+(F37+F38+F39)*0% -> 0 | G40: =+(G37+G38+G39)*0% -> 0 | H40: 0 | I40: 0
D41: 1ra Cuota | F41: =SUM(F37:F40) -> 2831.5 | G41: =SUM(G37:G40) -> 2578 | H41: =SUM(H37:H40) -> 2349.5 | I41: =SUM(I37:I40) -> 2035.5
D42: 2da Cuota | F42: =F37+F38+F40 -> 2756.5 | G42: =G37+G38+G40 -> 2503 | H42: 2274.5 | I42: 1960.5
D43: TOTAL | F43: =F41+F42 -> 5588 | G43: =G41+G42 -> 5081 | H43: 4624 | I43: 3996
D45: Tarifas Semestrales
D46: Prima Titular | F46: =VLOOKUP($I$12,Tablas!$A$923:$H$946,4,TRUE) -> 457.25 | G46: =VLOOKUP($I$12,Tablas!$A$923:$H$946,5,TRUE) -> 415.25 | H46: =VLOOKUP($I$12,Tablas!$A$923:$H$946,6,TRUE) -> 377.25 | I46: =VLOOKUP($I$12,Tablas!$A$923:$H$946,7,TRUE) -> 325.25
D47: Prima Cónyuge | F47: =IF($F$12=1,0,(VLOOKUP($I$14,Tablas!$A$923:$H$946,4,TRUE))) -> 723.5 | G47: =IF($F$12=1,0,(VLOOKUP($I$14,Tablas!$A$923:$H$946,5,TRUE))) -> 657 | H47: =IF($F$12=1,0,(VLOOKUP($I$14,Tablas!$A$923:$H$946,6,TRUE))) -> 597 | I47: =IF($F$12=1,0,(VLOOKUP($I$14,Tablas!$A$923:$H$946,7,TRUE))) -> 514.5
D48: Primas Hijos | F48: =IF($F$14=0,0,(VLOOKUP($F$14,Tablas!$A$947:$H$949,4,TRUE))) -> 197.5 | G48: =IF($F$14=0,0,(VLOOKUP($F$14,Tablas!$A$947:$H$949,5,TRUE))) -> 179.25 | H48: =IF($F$14=0,0,(VLOOKUP($F$14,Tablas!$A$947:$H$949,6,TRUE))) -> 163 | I48: =IF($F$14=0,0,(VLOOKUP($F$14,Tablas!$A$947:$H$949,7,TRUE))) -> 140.5
D49: PRIMA NETA | F49: =SUM(F46:F48) -> 1378.25 | G49: =SUM(G46:G48) -> 1251.5 | H49: =SUM(H46:H48) -> 1137.25 | I49: =SUM(I46:I48) -> 980.25
D50: =IF('INGRESO DE DATOS'!G26>0,"Descuento","") ->  | F50: =IF('INGRESO DE DATOS'!$G$14>0,-(F46+F47+F48)*'INGRESO DE DATOS'!$G$14,0) -> 0 | G50: =IF('INGRESO DE DATOS'!$G$14>0,-(G46+G47+G48)*'INGRESO DE DATOS'!$G$14,0) -> 0 | H50: =IF('INGRESO DE DATOS'!$G$14>0,-(H46+H47+H48)*'INGRESO DE DATOS'!$G$14,0) -> 0 | I50: =IF('INGRESO DE DATOS'!$G$14>0,-(I46+I47+I48)*'INGRESO DE DATOS'!$G$14,0) -> 0
D51: Costo Administrativo Anual | F51: 75 | G51: 75 | H51: 75 | I51: 75
D52: IVA (12%) | F52: =+(F49+F50+F51)*0% -> 0 | G52: =+(G49+G50+G51)*0% -> 0 | H52: 0 | I52: 0
D53: 1ra Cuota | F53: =SUM(F49:F52) -> 1453.25 | G53: =SUM(G49:G52) -> 1326.5 | H53: =SUM(H49:H52) -> 1212.25 | I53: =SUM(I49:I52) -> 1055.25
D54: 2da a 4ta Cuota | F54: =F49+F50+F52 -> 1378.25 | G54: =G49+G50+G52 -> 1251.5 | H54: 1137.25 | I54: 980.25
D55: TOTAL | F55: =F53+F54*3 -> 5588 | G55: =G53+G54*3 -> 5081 | H55: 4624 | I55: 3996
D57: Tarifas Mensuales
D58: Prima Titular | F58: =VLOOKUP($I$12,Tablas!$A$1215:$H$1243,4,TRUE) -> 170.7066661 | G58: =VLOOKUP($I$12,Tablas!$A$1215:$H$1243,5,TRUE) -> 155.0266661 | H58: =VLOOKUP($I$12,Tablas!$A$1215:$H$1243,6,TRUE) -> 140.8399995 | I58: =VLOOKUP($I$12,Tablas!$A$1215:$H$1243,7,TRUE) -> 121.4266662
D59: Prima Cónyuge | F59: =IF($F$12=1,0,(VLOOKUP($I$14,Tablas!$A$1215:$H$1243,4,TRUE))) -> 270.1066657 | G59: =IF($F$12=1,0,(VLOOKUP($I$14,Tablas!$A$1215:$H$1243,5,TRUE))) -> 245.2799991 | H59: =IF($F$12=1,0,(VLOOKUP($I$14,Tablas!$A$1215:$H$1243,6,TRUE))) -> 222.8799992 | I59: =IF($F$12=1,0,(VLOOKUP($I$14,Tablas!$A$1215:$H$1243,7,TRUE))) -> 192.0799993
D60: Primas Hijos | F60: =IF($F$14=0,0,(VLOOKUP($F$14,Tablas!$A$1239:$H$1241,4,TRUE))) -> 73.73333307 | G60: =IF($F$14=0,0,(VLOOKUP($F$14,Tablas!$A$1239:$H$1241,5,TRUE))) -> 66.91999976 | H60: =IF($F$14=0,0,(VLOOKUP($F$14,Tablas!$A$1239:$H$1241,6,TRUE))) -> 60.85333312 | I60: =IF($F$14=0,0,(VLOOKUP($F$14,Tablas!$A$1239:$H$1241,7,TRUE))) -> 52.45333315
D61: PRIMA NETA | F61: =SUM(F58:F60) -> 514.5466648 | G61: =SUM(G58:G60) -> 467.226665 | H61: =SUM(H58:H60) -> 424.5733318 | I61: =SUM(I58:I60) -> 365.9599987
F62: 0 | G62: 0 | H62: 0 | I62: 0
D63: Costo Administrativo Anual | F63: 75 | G63: 75 | H63: 75 | I63: 75
D64: IVA (12%) | F64: =+(F61+F62+F63)*0% -> 0 | G64: =+(G61+G62+G63)*0% -> 0 | H64: 0 | I64: 0
D65: 1ra Cuota | F65: =SUM(F61:F64) -> 589.5466648 | G65: =SUM(G61:G64) -> 542.226665 | H65: =SUM(H61:H64) -> 499.5733318 | I65: =SUM(I61:I64) -> 440.9599987
D66: 2da a 12va Cuota | F66: =F61+F62+F64 -> 514.5466648 | G66: =G61+G62+G64 -> 467.226665 | H66: 424.5733318 | I66: 365.9599987
D67: TOTAL | F67: =F65+F66*11 -> 6249.559978 | G67: =G65+G66*11 -> 5681.71998 | H67: 5169.879982 | I67: 4466.519984
D69: Tarifas en US $ - Válidas desde 01 Ene 2021
D70: Este presupuesto solamente tiene carácter informativo y en ningún momento expresa compromiso legal para suministrarle cobertura de seguro. La emisión de una póliza de seguro Bupa está sujeta a todas las evaluaciones de riesgo por parte de Bupa y a la recepción de todos los pagos de prima requeridos.
A88: Bupa Guatemala, Compañía de Seguros, S.A.
A89: 5 Avenida 5-55 Zona 14, Europlaza World Business Center, Torre 3, Nivel 11, Guatemala
A90: PBX: 2300-8000 / www.bupasalud.com / servicioguatemala@bupalatinamerica.com

Sheet Unique Care
D1: Cotización de Seguro Médico Internacional
A2: BUPA UNIQUE CARE | D2: Producto: Bupa Unique Care
D6: Nombre del Asegurado: | E6: =+'INGRESO DE DATOS'!$D$8 -> Nombre
D8: Intermediario: | E8: =+'INGRESO DE DATOS'!$D$18 -> Agente / Agencia
D10: Fecha: | E10: =+TODAY() -> 2021-02-25 | G10: =IF('INGRESO DE DATOS'!G14>0,"Descuento","") ->  | H10: =IF('INGRESO DE DATOS'!G14>0,'INGRESO DE DATOS'!G14,"") -> 
F12: Numero de Adultos: | G12: =+'INGRESO DE DATOS'!$G$10 -> 2 | I12: Edad de Titular: | J12: =+'INGRESO DE DATOS'!$G$12 -> 32
F14: Numero de Hijos: | G14: =+'INGRESO DE DATOS'!$J$10 -> 2 | I14: Edad de Conyuge: | J14: =+'INGRESO DE DATOS'!$J$12 -> 46
F16: Coberturas / Anexos Adicionales: | H16: Complicaciones de Maternidad (+ $500,000)
F17: TRUE
F18: TRUE | H18: Trasplante de Órganos (+ $500,000)
F19: TRUE
H20: Eliminación de Deducible
D22: Deducibles
F23: PLAN 1 | G23: PLAN 2 | H23: PLAN 3 | I23: PLAN 4 | J23: PLAN 5
D24: Dentro del pais de residencia | F24: 250 | G24: 1000 | H24: 2000 | I24: 5000 | J24: 10000
D25: Fuera del pais de residencia | F25: 1000 | G25: 2000 | H25: 3000 | I25: 5000 | J25: 10000
D27: Tarifas Anuales
D28: Prima Titular | F28: =(VLOOKUP($J$12,Tablas!$A$274:$H$336,4,TRUE))*0.9 -> 2230.56 | G28: =(VLOOKUP($J$12,Tablas!$A$274:$H$336,5,TRUE))*0.9 -> 1699.2 | H28: =(VLOOKUP($J$12,Tablas!$A$274:$H$336,6,TRUE))*0.9 -> 1401.84 | I28: =(VLOOKUP($J$12,Tablas!$A$274:$H$336,7,TRUE))*0.9 -> 1208.88 | J28: =(VLOOKUP($J$12,Tablas!$A$274:$H$336,8,TRUE))*0.9 -> 977.04
D29: Prima Cónyuge | F29: =(IF($G$12=1,0,(VLOOKUP($J$14,Tablas!$A$274:$H$336,4,TRUE))))*0.9 -> 3337.2 | G29: =(IF($G$12=1,0,(VLOOKUP($J$14,Tablas!$A$274:$H$336,5,TRUE))))*0.9 -> 2501.28 | H29: =(IF($G$12=1,0,(VLOOKUP($J$14,Tablas!$A$274:$H$336,6,TRUE))))*0.9 -> 2159.28 | I29: =(IF($G$12=1,0,(VLOOKUP($J$14,Tablas!$A$274:$H$336,7,TRUE))))*0.9 -> 1823.04 | J29: =(IF($G$12=1,0,(VLOOKUP($J$14,Tablas!$A$274:$H$336,8,TRUE))))*0.9 -> 1470.24
D30: Primas Hijos | F30: =(IF($G$14=0,0,(VLOOKUP($G$14,Tablas!$A$337:$H$339,4,TRUE))))*0.9 -> 1350 | G30: =(IF($G$14=0,0,(VLOOKUP($G$14,Tablas!$A$337:$H$339,5,TRUE))))*0.9 -> 1135.44 | H30: =(IF($G$14=0,0,(VLOOKUP($G$14,Tablas!$A$337:$H$339,6,TRUE))))*0.9 -> 612 | I30: =(IF($G$14=0,0,(VLOOKUP($G$14,Tablas!$A$337:$H$339,7,TRUE))))*0.9 -> 591.12 | J30: =(IF($G$14=0,0,(VLOOKUP($G$14,Tablas!$A$337:$H$339,8,TRUE))))*0.9 -> 492.48
D31: Anexo: Complicaciones de Maternidad | F31: =+IF($F$17=FALSE,0,Tablas!D$340) -> 0 | G31: =+IF($F$17=FALSE,0,Tablas!E$340) -> 0 | H31: =+IF($F$17=FALSE,0,Tablas!F$340) -> 0 | I31: =+IF($F$17=FALSE,0,Tablas!G$340) -> 225 | J31: =+IF($F$17=FALSE,0,Tablas!H$340) -> 225
D32: Anexo: Trasplante Organos | F32: =IF($F$18=FALSE,0,Tablas!D$341) -> 300 | G32: =IF($F$18=FALSE,0,Tablas!E$341) -> 300 | H32: =IF($F$18=FALSE,0,Tablas!F$341) -> 300 | I32: =IF($F$18=FALSE,0,Tablas!G$341) -> 300 | J32: =IF($F$18=FALSE,0,Tablas!H$341) -> 300
D33: Anexo: Eliminacion de Deducible | F33: =IF($F$19=FALSE,0,Tablas!D$342) -> 45 | G33: =IF($F$19=FALSE,0,Tablas!E$342) -> 180 | H33: =IF($F$19=FALSE,0,Tablas!F$342) -> 345 | I33: =IF($F$19=FALSE,0,Tablas!G$342) -> 775 | J33: =IF($F$19=FALSE,0,Tablas!H$342) -> 1330
D34: PRIMA NETA | F34: =SUM(F28:F33) -> 7262.76 | G34: =SUM(G28:G33) -> 5815.92 | H34: 4818.12 | I34: 4923.04 | J34: 4794.76
D35: =IF('INGRESO DE DATOS'!G14>0,"Descuento","") ->  | F35: =IF('INGRESO DE DATOS'!$G$14>0,-(F28+F29+F30)*'INGRESO DE DATOS'!$G$14,0) -> 0 | G35: =IF('INGRESO DE DATOS'!$G$14>0,-(G28+G29+G30)*'INGRESO DE DATOS'!$G$14,0) -> 0 | H35: =IF('INGRESO DE DATOS'!$G$14>0,-(H28+H29+H30)*'INGRESO DE DATOS'!$G$14,0) -> 0 | I35: =IF('INGRESO DE DATOS'!$G$14>0,-(I28+I29+I30)*'INGRESO DE DATOS'!$G$14,0) -> 0 | J35: =IF('INGRESO DE DATOS'!$G$14>0,-(J28+J29+J30)*'INGRESO DE DATOS'!$G$14,0) -> 0
D36: Costo Administrativo Anual | F36: 75 | G36: 75 | H36: 75 | I36: 75 | J36: 75
D37: IVA (12%) | F37: =+(F34+F35+F36)*0% -> 0 | G37: =+(G34+G35+G36)*0% -> 0 | H37: 0 | I37: 0 | J37: 0
D38: TOTAL | F38: =SUM(F34:F37) -> 7337.76 | G38: =SUM(G34:G37) -> 5890.92 | H38: =SUM(H34:H37) -> 4893.12 | I38: =SUM(I34:I37) -> 4998.04 | J38: =SUM(J34:J37) -> 4869.76
D40: Tarifas Semestrales
D41: Prima Titular | F41: =VLOOKUP($J$12,Tablas!$A$346:$H$408,4,TRUE) -> 1239.2 | G41: =VLOOKUP($J$12,Tablas!$A$346:$H$408,5,TRUE) -> 944 | H41: =VLOOKUP($J$12,Tablas!$A$346:$H$408,6,TRUE) -> 778.8 | I41: =VLOOKUP($J$12,Tablas!$A$346:$H$408,7,TRUE) -> 671.6 | J41: =VLOOKUP($J$12,Tablas!$A$346:$H$408,8,TRUE) -> 542.8
D42: Prima Cónyuge | F42: =IF($G$12=1,0,(VLOOKUP($J$14,Tablas!$A$346:$H$408,4,TRUE))) -> 1854 | G42: =IF($G$12=1,0,(VLOOKUP($J$14,Tablas!$A$346:$H$408,5,TRUE))) -> 1389.6 | H42: =IF($G$12=1,0,(VLOOKUP($J$14,Tablas!$A$346:$H$408,6,TRUE))) -> 1199.6 | I42: =IF($G$12=1,0,(VLOOKUP($J$14,Tablas!$A$346:$H$408,7,TRUE))) -> 1012.8 | J42: =IF($G$12=1,0,(VLOOKUP($J$14,Tablas!$A$346:$H$408,8,TRUE))) -> 816.8
D43: Primas Hijos | F43: =IF($G$14=0,0,(VLOOKUP($G$14,Tablas!$A$409:$H$411,4,TRUE))) -> 750 | G43: =IF($G$14=0,0,(VLOOKUP($G$14,Tablas!$A$409:$H$411,5,TRUE))) -> 630.8 | H43: =IF($G$14=0,0,(VLOOKUP($G$14,Tablas!$A$409:$H$411,6,TRUE))) -> 340 | I43: =IF($G$14=0,0,(VLOOKUP($G$14,Tablas!$A$409:$H$411,7,TRUE))) -> 328.4 | J43: =IF($G$14=0,0,(VLOOKUP($G$14,Tablas!$A$409:$H$411,8,TRUE))) -> 273.6
D44: Anexo: Complicaciones de Maternidad | F44: =+IF($F$17=FALSE,0,Tablas!D$412) -> 0 | G44: =+IF($F$17=FALSE,0,Tablas!E$412) -> 0 | H44: =+IF($F$17=FALSE,0,Tablas!F$412) -> 0 | I44: =+IF($F$17=FALSE,0,Tablas!G$412) -> 112.5 | J44: =+IF($F$17=FALSE,0,Tablas!H$412) -> 112.5
D45: Anexo: Trasplante Organos | F45: =IF($F$18=FALSE,0,Tablas!D$413) -> 150 | G45: =IF($F$18=FALSE,0,Tablas!E$413) -> 150 | H45: =IF($F$18=FALSE,0,Tablas!F$413) -> 150 | I45: =IF($F$18=FALSE,0,Tablas!G$413) -> 150 | J45: =IF($F$18=FALSE,0,Tablas!H$413) -> 150
D46: Anexo: Eliminacion de Deducible | F46: =IF($F$19=FALSE,0,Tablas!D$414) -> 22.5 | G46: =IF($F$19=FALSE,0,Tablas!E$414) -> 90 | H46: =IF($F$19=FALSE,0,Tablas!F$414) -> 172.5 | I46: =IF($F$19=FALSE,0,Tablas!G$414) -> 387.5 | J46: =IF($F$19=FALSE,0,Tablas!H$414) -> 665
D47: PRIMA NETA | F47: =SUM(F41:F46) -> 4015.7 | G47: =SUM(G41:G46) -> 3204.4 | H47: 2640.9 | I47: 2662.8 | J47: 2560.7
D48: =IF('INGRESO DE DATOS'!G14>0,"Descuento","") ->  | F48: =IF('INGRESO DE DATOS'!$G$14>0,-(F41+F42+F43)*'INGRESO DE DATOS'!$G$14,0) -> 0 | G48: =IF('INGRESO DE DATOS'!$G$14>0,-(G41+G42+G43)*'INGRESO DE DATOS'!$G$14,0) -> 0 | H48: =IF('INGRESO DE DATOS'!$G$14>0,-(H41+H42+H43)*'INGRESO DE DATOS'!$G$14,0) -> 0 | I48: =IF('INGRESO DE DATOS'!$G$14>0,-(I41+I42+I43)*'INGRESO DE DATOS'!$G$14,0) -> 0 | J48: =IF('INGRESO DE DATOS'!$G$14>0,-(J41+J42+J43)*'INGRESO DE DATOS'!$G$14,0) -> 0
D49: Costo Administrativo Anual | F49: 75 | G49: 75 | H49: 75 | I49: 75 | J49: 75
D50: IVA (12%) | F50: =+(F47+F48+F49)*0% -> 0 | G50: =+(G47+G48+G49)*0% -> 0 | H50: 0 | I50: 0 | J50: 0
D51: 1ra Cuota | F51: =SUM(F47:F50) -> 4090.7 | G51: =SUM(G47:G50) -> 3279.4 | H51: =SUM(H47:H50) -> 2715.9 | I51: =SUM(I47:I50) -> 2737.8 | J51: =SUM(J47:J50) -> 2635.7
D52: 2da Cuota | F52: =F47+F48+F50 -> 4015.7 | G52: =G47+G48+G50 -> 3204.4 | H52: 2640.9 | I52: 2662.8 | J52: 2560.7
D53: TOTAL | F53: =F51+F52 -> 8106.4 | G53: =G51+G52 -> 6483.8 | H53: 5356.8 | I53: 5400.6 | J53: 5196.4
D55: Tarifas Trimestrales
D56: Prima Titular | F56: =VLOOKUP($J$12,Tablas!$A$991:$H$1053,4,TRUE) -> 619.6 | G56: =VLOOKUP($J$12,Tablas!$A$991:$H$1053,5,TRUE) -> 472 | H56: =VLOOKUP($J$12,Tablas!$A$991:$H$1053,6,TRUE) -> 389.4 | I56: =VLOOKUP($J$12,Tablas!$A$991:$H$1053,7,TRUE) -> 335.8 | J56: =VLOOKUP($J$12,Tablas!$A$991:$H$1053,8,TRUE) -> 271.4
D57: Prima Cónyuge | F57: =IF($G$12=1,0,(VLOOKUP($J$14,Tablas!$A$991:$H$1053,4,TRUE))) -> 927 | G57: =IF($G$12=1,0,(VLOOKUP($J$14,Tablas!$A$991:$H$1053,5,TRUE))) -> 694.8 | H57: =IF($G$12=1,0,(VLOOKUP($J$14,Tablas!$A$991:$H$1053,6,TRUE))) -> 599.8 | I57: =IF($G$12=1,0,(VLOOKUP($J$14,Tablas!$A$991:$H$1053,7,TRUE))) -> 506.4 | J57: =IF($G$12=1,0,(VLOOKUP($J$14,Tablas!$A$991:$H$1053,8,TRUE))) -> 408.4
D58: Primas Hijos | F58: =IF($G$14=0,0,(VLOOKUP($G$14,Tablas!$A$1054:$H$1056,4,TRUE))) -> 375 | G58: =IF($G$14=0,0,(VLOOKUP($G$14,Tablas!$A$1054:$H$1056,5,TRUE))) -> 315.4 | H58: =IF($G$14=0,0,(VLOOKUP($G$14,Tablas!$A$1054:$H$1056,6,TRUE))) -> 170 | I58: =IF($G$14=0,0,(VLOOKUP($G$14,Tablas!$A$1054:$H$1056,7,TRUE))) -> 164.2 | J58: =IF($G$14=0,0,(VLOOKUP($G$14,Tablas!$A$1054:$H$1056,8,TRUE))) -> 136.8
D59: Anexo: Complicaciones de Maternidad | F59: =+IF($F$17=FALSE,0,Tablas!D$1057) -> 0 | G59: =+IF($F$17=FALSE,0,Tablas!E$1057) -> 0 | H59: =+IF($F$17=FALSE,0,Tablas!F$1057) -> 0 | I59: =+IF($F$17=FALSE,0,Tablas!G$1057) -> 56.25 | J59: =+IF($F$17=FALSE,0,Tablas!H$1057) -> 56.25
D60: Anexo: Trasplante Organos | F60: =IF($F$18=FALSE,0,Tablas!D$1058) -> 75 | G60: =IF($F$18=FALSE,0,Tablas!E$1058) -> 75 | H60: =IF($F$18=FALSE,0,Tablas!F$1058) -> 75 | I60: =IF($F$18=FALSE,0,Tablas!G$1058) -> 75 | J60: =IF($F$18=FALSE,0,Tablas!H$1058) -> 75
D61: Anexo: Eliminacion de Deducible | F61: =IF($F$19=FALSE,0,Tablas!D$1059) -> 11.25 | G61: =IF($F$19=FALSE,0,Tablas!E$1059) -> 45 | H61: =IF($F$19=FALSE,0,Tablas!F$1059) -> 86.25 | I61: =IF($F$19=FALSE,0,Tablas!G$1059) -> 193.75 | J61: =IF($F$19=FALSE,0,Tablas!H$1059) -> 332.5
D62: PRIMA NETA | F62: =SUM(F56:F61) -> 2007.85 | G62: =SUM(G56:G61) -> 1602.2 | H62: 1320.45 | I62: 1331.4 | J62: 1280.35
D63: =IF('INGRESO DE DATOS'!G28>0,"Descuento","") ->  | F63: =IF('INGRESO DE DATOS'!$G$14>0,-(F56+F57+F58)*'INGRESO DE DATOS'!$G$14,0) -> 0 | G63: =IF('INGRESO DE DATOS'!$G$14>0,-(G56+G57+G58)*'INGRESO DE DATOS'!$G$14,0) -> 0 | H63: =IF('INGRESO DE DATOS'!$G$14>0,-(H56+H57+H58)*'INGRESO DE DATOS'!$G$14,0) -> 0 | I63: =IF('INGRESO DE DATOS'!$G$14>0,-(I56+I57+I58)*'INGRESO DE DATOS'!$G$14,0) -> 0 | J63: =IF('INGRESO DE DATOS'!$G$14>0,-(J56+J57+J58)*'INGRESO DE DATOS'!$G$14,0) -> 0
D64: Costo Administrativo Anual | F64: 75 | G64: 75 | H64: 75 | I64: 75 | J64: 75
D65: IVA (12%) | F65: =+(F62+F63+F64)*0% -> 0 | G65: =+(G62+G63+G64)*0% -> 0 | H65: 0 | I65: 0 | J65: 0
D66: 1ra Cuota | F66: =SUM(F62:F65) -> 2082.85 | G66: =SUM(G62:G65) -> 1677.2 | H66: =SUM(H62:H65) -> 1395.45 | I66: =SUM(I62:I65) -> 1406.4 | J66: =SUM(J62:J65) -> 1355.35
D67: 2da a 4ta Cuota | F67: =F62+F63+F65 -> 2007.85 | G67: =G62+G63+G65 -> 1602.2 | H67: 1320.45 | I67: 1331.4 | J67: 1280.35
D68: TOTAL | F68: =F66+F67*3 -> 8106.4 | G68: =G66+G67*3 -> 6483.8 | H68: 5356.8 | I68: 5400.6 | J68: 5196.4
D70: Tarifas Mensuales
D71: Prima Titular | F71: =VLOOKUP($J$12,Tablas!$A$1250:$H$1318,4,TRUE) -> 231.3173325 | G71: =VLOOKUP($J$12,Tablas!$A$1250:$H$1318,5,TRUE) -> 176.2133327 | H71: =VLOOKUP($J$12,Tablas!$A$1250:$H$1318,6,TRUE) -> 145.3759995 | I71: =VLOOKUP($J$12,Tablas!$A$1250:$H$1318,7,TRUE) -> 125.3653329 | J71: =VLOOKUP($J$12,Tablas!$A$1250:$H$1318,8,TRUE) -> 101.3226663
D72: Prima Cónyuge | F72: =IF($G$12=1,0,(VLOOKUP($J$14,Tablas!$A$1250:$H$1318,4,TRUE))) -> 346.0799988 | G72: =IF($G$12=1,0,(VLOOKUP($J$14,Tablas!$A$1250:$H$1318,5,TRUE))) -> 259.3919991 | H72: =IF($G$12=1,0,(VLOOKUP($J$14,Tablas!$A$1250:$H$1318,6,TRUE))) -> 223.9253325 | I72: =IF($G$12=1,0,(VLOOKUP($J$14,Tablas!$A$1250:$H$1318,7,TRUE))) -> 189.0559993 | J72: =IF($G$12=1,0,(VLOOKUP($J$14,Tablas!$A$1250:$H$1318,8,TRUE))) -> 152.4693328
D73: Primas Hijos | F73: =IF($G$14=0,0,(VLOOKUP($G$14,Tablas!$A$1313:$H$1315,4,TRUE))) -> 139.9999995 | G73: =IF($G$14=0,0,(VLOOKUP($G$14,Tablas!$A$1313:$H$1315,5,TRUE))) -> 117.7493329 | H73: =IF($G$14=0,0,(VLOOKUP($G$14,Tablas!$A$1313:$H$1315,6,TRUE))) -> 63.46666644 | I73: =IF($G$14=0,0,(VLOOKUP($G$14,Tablas!$A$1313:$H$1315,7,TRUE))) -> 61.30133311 | J73: =IF($G$14=0,0,(VLOOKUP($G$14,Tablas!$A$1313:$H$1315,8,TRUE))) -> 51.07199982
D74: Anexo: Complicaciones de Maternidad | F74: =IF($F$18=FALSE,0,Tablas!D$1316) -> 0 | G74: =IF($F$18=FALSE,0,Tablas!E$1316) -> 0 | H74: =IF($F$18=FALSE,0,Tablas!F$1316) -> 0 | I74: =IF($F$18=FALSE,0,Tablas!G$1316) -> 20.99999993 | J74: =IF($F$18=FALSE,0,Tablas!H$1316) -> 20.99999993
D75: Anexo: Trasplante Organos | F75: =IF($F$18=FALSE,0,Tablas!$D$1317) -> 27.9999999 | G75: =IF($F$18=FALSE,0,Tablas!$D$1317) -> 27.9999999 | H75: =IF($F$18=FALSE,0,Tablas!$D$1317) -> 27.9999999 | I75: =IF($F$18=FALSE,0,Tablas!$D$1317) -> 27.9999999 | J75: =IF($F$18=FALSE,0,Tablas!$D$1317) -> 27.9999999
D76: Anexo: Eliminacion de Deducible | F76: =IF($F$19=FALSE,0,Tablas!D1318) -> 4.199999985 | G76: =IF($F$19=FALSE,0,Tablas!E1318) -> 16.79999994 | H76: =IF($F$19=FALSE,0,Tablas!F1318) -> 32.19999989 | I76: =IF($F$19=FALSE,0,Tablas!G1318) -> 72.33333307 | J76: =IF($F$19=FALSE,0,Tablas!H1318) -> 124.1333329
D77: PRIMA NETA | F77: =SUM(F71:F76) -> 749.5973307 | G77: =SUM(G71:G76) -> 598.1546645 | H77: 492.9679982 | I77: 497.0559982 | J77: 477.9973316
F78: 0 | G78: 0 | H78: 0 | I78: 0 | J78: 0
D79: Costo Administrativo Anual | F79: 75 | G79: 75 | H79: 75 | I79: 75 | J79: 75
D80: IVA (12%) | F80: =+(F77+F78+F79)*0% -> 0 | G80: =+(G77+G78+G79)*0% -> 0 | H80: 0 | I80: 0 | J80: 0
D81: 1ra Cuota | F81: =SUM(F77:F80) -> 824.5973307 | G81: =SUM(G77:G80) -> 673.1546645 | H81: =SUM(H77:H80) -> 567.9679982 | I81: =SUM(I77:I80) -> 572.0559982 | J81: =SUM(J77:J80) -> 552.9973316
D82: 2da a 12va Cuota | F82: =F77+F78+F80 -> 749.5973307 | G82: =G77+G78+G80 -> 598.1546645 | H82: 492.9679982 | I82: 497.0559982 | J82: 477.9973316
D83: TOTAL | F83: =F81+F82*11 -> 9070.167968 | G83: =G81+G82*11 -> 7252.855974 | H83: 5990.615979 | I83: 6039.671979 | J83: 5810.96798
D85: Tarifas en US $ - Válidas desde 01 Ene 2021
A86: Bupa Guatemala, Compañía de Seguros, S.A. | D86: Este presupuesto solamente tiene carácter informativo y en ningún momento expresa compromiso legal para suministrarle cobertura de seguro. La emisión de una póliza de seguro Bupa está sujeta a todas las evaluaciones de riesgo por parte de Bupa y a la recepción de todos los pagos de prima requeridos.
A87: 5 Avenida 5-55 Zona 14, Europlaza World Business Center, Torre 3, Nivel 11, Guatemala
A88: PBX: 2300-8000 / www.bupasalud.com / servicioguatemala@bupalatinamerica.com

Sheet Unique Care - Deducible Cero
D1: Cotización de Seguro Médico Internacional
A2: BUPA UNIQUE CARE - DEDUCIBLE CERO | D2: Producto: Bupa Unique Care - Deducible Cero
D6: Nombre del Asegurado: | E6: =+'INGRESO DE DATOS'!$D$8 -> Nombre
D8: Intermediario: | E8: =+'INGRESO DE DATOS'!$D$18 -> Agente / Agencia
D10: Fecha: | E10: =+TODAY() -> 2021-02-25 | G10: =IF('INGRESO DE DATOS'!G14>0,"Descuento","") ->  | H10: =IF('INGRESO DE DATOS'!G14>0,'INGRESO DE DATOS'!G14,"") -> 
F12: Numero de Adultos: | G12: =+'INGRESO DE DATOS'!$G$10 -> 2 | I12: Edad de Titular: | J12: =+'INGRESO DE DATOS'!$G$12 -> 32
F14: Numero de Hijos: | G14: =+'INGRESO DE DATOS'!$J$10 -> 2 | I14: Edad de Conyuge: | J14: =+'INGRESO DE DATOS'!$J$12 -> 46
F16: TRUE | H16: Complicaciones de Maternidad (+ $500,000)
F18: TRUE | G18: FALSE | H18: Trasplante de Órganos (+ $500,000)
D20: Deducibles
F21: PLAN 1 | G21: PLAN 2 | H21: PLAN 3 | I21: PLAN 4
D22: Dentro del pais de residencia | F22: 0 | G22: 0 | H22: 0 | I22: 0
D23: Fuera del pais de residencia | F23: 1000 | G23: 2000 | H23: 3000 | I23: 5000
D25: Tarifas Anuales
D26: Prima Titular | F26: =(VLOOKUP($J$12,Tablas!$A$633:$H$695,4,TRUE))*0.9 -> 2409.12 | G26: =(VLOOKUP($J$12,Tablas!$A$633:$H$695,5,TRUE))*0.9 -> 2119.68 | H26: =(VLOOKUP($J$12,Tablas!$A$633:$H$695,6,TRUE))*0.9 -> 1896.48 | I26: =(VLOOKUP($J$12,Tablas!$A$633:$H$695,7,TRUE))*0.9 -> 1673.28
D27: Prima Cónyuge | F27: =(IF($G$12=1,0,(VLOOKUP($J$14,Tablas!$A$633:$H$695,4,TRUE))))*0.9 -> 3604.32 | G27: =(IF($G$12=1,0,(VLOOKUP($J$14,Tablas!$A$633:$H$695,5,TRUE))))*0.9 -> 3170.88 | H27: =(IF($G$12=1,0,(VLOOKUP($J$14,Tablas!$A$633:$H$695,6,TRUE))))*0.9 -> 2837.52 | I27: =(IF($G$12=1,0,(VLOOKUP($J$14,Tablas!$A$633:$H$695,7,TRUE))))*0.9 -> 2503.44
D28: Primas Hijos | F28: =(IF($G$14=0,0,(VLOOKUP($G$14,Tablas!$A$696:$H$700,4,TRUE))))*0.9 -> 1458 | G28: =(IF($G$14=0,0,(VLOOKUP($G$14,Tablas!$A$696:$H$700,5,TRUE))))*0.9 -> 1282.32 | H28: =(IF($G$14=0,0,(VLOOKUP($G$14,Tablas!$A$696:$H$700,6,TRUE))))*0.9 -> 1147.68 | I28: =(IF($G$14=0,0,(VLOOKUP($G$14,Tablas!$A$696:$H$700,7,TRUE))))*0.9 -> 1012.32
D29: Anexo: Complicaciones de Maternidad | F29: =+IF($F$16=FALSE,0,Tablas!D$412) -> 0 | G29: =+IF($F$16=FALSE,0,Tablas!E$340) -> 0 | H29: =+IF($F$16=FALSE,0,Tablas!F$340) -> 0 | I29: =+IF($F$16=FALSE,0,Tablas!G$340) -> 225
D30: Anexo: Trasplante Organos | F30: =IF($F$18=FALSE,0,Tablas!D$341) -> 300 | G30: =IF($F$18=FALSE,0,Tablas!E$341) -> 300 | H30: =IF($F$18=FALSE,0,Tablas!F$341) -> 300 | I30: =IF($F$18=FALSE,0,Tablas!G$341) -> 300
D31: PRIMA NETA | F31: =SUM(F26:F30) -> 7771.44 | G31: =SUM(G26:G30) -> 6872.88 | H31: 6181.68 | I31: 5714.04
D32: =IF('INGRESO DE DATOS'!G14>0,"Descuento","") ->  | F32: =IF('INGRESO DE DATOS'!$G$14>0,-(F26+F27+F28)*'INGRESO DE DATOS'!$G$14,0) -> 0 | G32: =IF('INGRESO DE DATOS'!$G$14>0,-(G26+G27+G28)*'INGRESO DE DATOS'!$G$14,0) -> 0 | H32: =IF('INGRESO DE DATOS'!$G$14>0,-(H26+H27+H28)*'INGRESO DE DATOS'!$G$14,0) -> 0 | I32: =IF('INGRESO DE DATOS'!$G$14>0,-(I26+I27+I28)*'INGRESO DE DATOS'!$G$14,0) -> 0
D33: Costo Administrativo Anual | F33: 75 | G33: 75 | H33: 75 | I33: 75
D34: IVA (12%) | F34: =+(F31+F32+F33)*0% -> 0 | G34: =+(G31+G32+G33)*0% -> 0 | H34: 0 | I34: 0
D35: TOTAL | F35: =SUM(F31:F34) -> 7846.44 | G35: =SUM(G31:G34) -> 6947.88 | H35: =SUM(H31:H34) -> 6256.68 | I35: =SUM(I31:I34) -> 5789.04
D37: Tarifas Semestrales
D38: Prima Titular | F38: =VLOOKUP($J$12,Tablas!$A$705:$H$767,4,TRUE) -> 1338.4 | G38: =VLOOKUP($J$12,Tablas!$A$705:$H$767,5,TRUE) -> 1177.6 | H38: =VLOOKUP($J$12,Tablas!$A$705:$H$767,6,TRUE) -> 1053.6 | I38: =VLOOKUP($J$12,Tablas!$A$705:$H$767,7,TRUE) -> 929.6
D39: Prima Cónyuge | F39: =IF($G$12=1,0,(VLOOKUP($J$14,Tablas!$A$705:$H$767,4,TRUE))) -> 2002.4 | G39: =IF($G$12=1,0,(VLOOKUP($J$14,Tablas!$A$705:$H$767,5,TRUE))) -> 1761.6 | H39: =IF($G$12=1,0,(VLOOKUP($J$14,Tablas!$A$705:$H$767,6,TRUE))) -> 1576.4 | I39: =IF($G$12=1,0,(VLOOKUP($J$14,Tablas!$A$705:$H$767,7,TRUE))) -> 1390.8
D40: Primas Hijos | F40: =IF($G$14=0,0,(VLOOKUP($G$14,Tablas!$A$768:$H$772,4,TRUE))) -> 810 | G40: =IF($G$14=0,0,(VLOOKUP($G$14,Tablas!$A$768:$H$772,5,TRUE))) -> 712.4 | H40: =IF($G$14=0,0,(VLOOKUP($G$14,Tablas!$A$768:$H$772,6,TRUE))) -> 637.6 | I40: =IF($G$14=0,0,(VLOOKUP($G$14,Tablas!$A$768:$H$772,7,TRUE))) -> 562.4
D41: Anexo: Complicaciones de Maternidad | F41: =+IF($F$16=FALSE,0,Tablas!D$412) -> 0 | G41: =+IF($F$16=FALSE,0,Tablas!E$412) -> 0 | H41: =+IF($F$16=FALSE,0,Tablas!F$412) -> 0 | I41: =+IF($F$16=FALSE,0,Tablas!G$412) -> 112.5
D42: Anexo: Trasplante Organos | F42: =IF($F$18=FALSE,0,Tablas!D$413) -> 150 | G42: =IF($F$18=FALSE,0,Tablas!E$413) -> 150 | H42: =IF($F$18=FALSE,0,Tablas!F$413) -> 150 | I42: =IF($F$18=FALSE,0,Tablas!G$413) -> 150
D43: PRIMA NETA | F43: =SUM(F38:F42) -> 4300.8 | G43: =SUM(G38:G42) -> 3801.6 | H43: 3417.6 | I43: 3145.3
D44: =IF('INGRESO DE DATOS'!G14>0,"Descuento","") ->  | F44: =IF('INGRESO DE DATOS'!$G$14>0,-(F38+F39+F40)*'INGRESO DE DATOS'!$G$14,0) -> 0 | G44: =IF('INGRESO DE DATOS'!$G$14>0,-(G38+G39+G40)*'INGRESO DE DATOS'!$G$14,0) -> 0 | H44: =IF('INGRESO DE DATOS'!$G$14>0,-(H38+H39+H40)*'INGRESO DE DATOS'!$G$14,0) -> 0 | I44: =IF('INGRESO DE DATOS'!$G$14>0,-(I38+I39+I40)*'INGRESO DE DATOS'!$G$14,0) -> 0
D45: Costo Administrativo Anual | F45: 75 | G45: 75 | H45: 75 | I45: 75
D46: IVA (12%) | F46: =+(F43+F44+F45)*0% -> 0 | G46: =+(G43+G44+G45)*0% -> 0 | H46: 0 | I46: 0
D47: 1ra Cuota | F47: =SUM(F43:F46) -> 4375.8 | G47: =SUM(G43:G46) -> 3876.6 | H47: =SUM(H43:H46) -> 3492.6 | I47: =SUM(I43:I46) -> 3220.3
D48: 2da Cuota | F48: =F43+F44+F46 -> 4300.8 | G48: =G43+G44+G46 -> 3801.6 | H48: 3417.6 | I48: 3145.3
D49: TOTAL | F49: =F47+F48 -> 8676.6 | G49: =G47+G48 -> 7678.2 | H49: 6910.2 | I49: 6365.6
D51: Tarifas Trimestrales
D52: Prima Titular | F52: =VLOOKUP($J$12,Tablas!$A$1139:$H$1201,4,TRUE) -> 669.2 | G52: =VLOOKUP($J$12,Tablas!$A$1139:$H$1201,5,TRUE) -> 588.8 | H52: =VLOOKUP($J$12,Tablas!$A$1139:$H$1201,6,TRUE) -> 526.8 | I52: =VLOOKUP($J$12,Tablas!$A$1139:$H$1201,7,TRUE) -> 464.8
D53: Prima Cónyuge | F53: =IF($G$12=1,0,(VLOOKUP($J$14,Tablas!$A$1139:$H$1201,4,TRUE))) -> 1001.2 | G53: =IF($G$12=1,0,(VLOOKUP($J$14,Tablas!$A$1139:$H$1201,5,TRUE))) -> 880.8 | H53: =IF($G$12=1,0,(VLOOKUP($J$14,Tablas!$A$1139:$H$1201,6,TRUE))) -> 788.2 | I53: =IF($G$12=1,0,(VLOOKUP($J$14,Tablas!$A$1139:$H$1201,7,TRUE))) -> 695.4
D54: Primas Hijos | F54: =IF($G$14=0,0,(VLOOKUP($G$14,Tablas!$A$1202:$H$1207,4,TRUE))) -> 405 | G54: =IF($G$14=0,0,(VLOOKUP($G$14,Tablas!$A$1202:$H$1207,5,TRUE))) -> 356.2 | H54: =IF($G$14=0,0,(VLOOKUP($G$14,Tablas!$A$1202:$H$1207,6,TRUE))) -> 318.8 | I54: =IF($G$14=0,0,(VLOOKUP($G$14,Tablas!$A$1202:$H$1207,7,TRUE))) -> 281.2
D55: Anexo: Complicaciones de Maternidad | F55: =+IF($F$16=FALSE,0,Tablas!D1205) -> 0 | G55: =+IF($F$16=FALSE,0,Tablas!E1205) -> 0 | H55: =+IF($F$16=FALSE,0,Tablas!F1205) -> 0 | I55: =+IF($F$16=FALSE,0,Tablas!G1205) -> 56.25
D56: Anexo: Trasplante Organos | F56: =IF($F$18=FALSE,0,Tablas!D$1206) -> 75 | G56: =IF($F$18=FALSE,0,Tablas!E$1206) -> 75 | H56: =IF($F$18=FALSE,0,Tablas!F$1206) -> 75 | I56: =IF($F$18=FALSE,0,Tablas!G$1206) -> 75
D57: PRIMA NETA | F57: =SUM(F52:F56) -> 2150.4 | G57: =SUM(G52:G56) -> 1900.8 | H57: 1708.8 | I57: 1572.65
D58: =IF('INGRESO DE DATOS'!G27>0,"Descuento","") ->  | F58: =IF('INGRESO DE DATOS'!$G$14>0,-(F52+F53+F54)*'INGRESO DE DATOS'!$G$14,0) -> 0 | G58: =IF('INGRESO DE DATOS'!$G$14>0,-(G52+G53+G54)*'INGRESO DE DATOS'!$G$14,0) -> 0 | H58: =IF('INGRESO DE DATOS'!$G$14>0,-(H52+H53+H54)*'INGRESO DE DATOS'!$G$14,0) -> 0 | I58: =IF('INGRESO DE DATOS'!$G$14>0,-(I52+I53+I54)*'INGRESO DE DATOS'!$G$14,0) -> 0
D59: Costo Administrativo Anual | F59: 75 | G59: 75 | H59: 75 | I59: 75
D60: IVA (12%) | F60: =+(F57+F58+F59)*0% -> 0 | G60: =+(G57+G58+G59)*0% -> 0 | H60: 0 | I60: 0
D61: 1ra Cuota | F61: =SUM(F57:F60) -> 2225.4 | G61: =SUM(G57:G60) -> 1975.8 | H61: =SUM(H57:H60) -> 1783.8 | I61: =SUM(I57:I60) -> 1647.65
D62: 2da a 4ta Cuota | F62: =F57+F58+F60 -> 2150.4 | G62: =G57+G58+G60 -> 1900.8 | H62: 1708.8 | I62: 1572.65
D63: TOTAL | F63: =F61+F62*3 -> 8676.6 | G63: =G61+G62*3 -> 7678.2 | H63: 6910.2 | I63: 6365.6
D65: Tarifas Mensuales
D66: Prima Titular | F66: =VLOOKUP($J$12,Tablas!$A$1324:$H$1391,4,TRUE) -> 249.8346658 | G66: =VLOOKUP($J$12,Tablas!$A$1324:$H$1391,5,TRUE) -> 219.8186659 | H66: =VLOOKUP($J$12,Tablas!$A$1324:$H$1391,6,TRUE) -> 196.6719993 | I66: =VLOOKUP($J$12,Tablas!$A$1324:$H$1391,7,TRUE) -> 173.5253327
D67: Prima Cónyuge | F67: =IF($G$12=1,0,(VLOOKUP($J$14,Tablas!$A$1324:$H$1391,4,TRUE))) -> 373.781332 | G67: =IF($G$12=1,0,(VLOOKUP($J$14,Tablas!$A$1324:$H$1391,5,TRUE))) -> 328.8319988 | H67: =IF($G$12=1,0,(VLOOKUP($J$14,Tablas!$A$1324:$H$1391,6,TRUE))) -> 294.2613323 | I67: =IF($G$12=1,0,(VLOOKUP($J$14,Tablas!$A$1324:$H$1391,7,TRUE))) -> 259.6159991
D68: Primas Hijos | F68: =IF($G$14=0,0,(VLOOKUP($G$14,Tablas!$A$1387:$H$1389,4,TRUE))) -> 151.1999995 | G68: =IF($G$14=0,0,(VLOOKUP($G$14,Tablas!$A$1387:$H$1389,5,TRUE))) -> 132.9813329 | H68: =IF($G$14=0,0,(VLOOKUP($G$14,Tablas!$A$1387:$H$1389,6,TRUE))) -> 119.0186662 | I68: =IF($G$14=0,0,(VLOOKUP($G$14,Tablas!$A$1387:$H$1389,7,TRUE))) -> 104.981333
D69: Anexo: Complicaciones de Maternidad | F69: =+IF($F$16=FALSE,0,Tablas!D$1390) -> 0 | G69: =+IF($F$16=FALSE,0,Tablas!E$1390) -> 0 | H69: =+IF($F$16=FALSE,0,Tablas!F$1390) -> 0 | I69: =+IF($F$16=FALSE,0,Tablas!G$1390) -> 20.99999993
D70: Anexo: Trasplante Organos | F70: =IF($F$18=FALSE,0,Tablas!D1391) -> 27.9999999 | G70: =IF($F$18=FALSE,0,Tablas!E1391) -> 27.9999999 | H70: =IF($F$18=FALSE,0,Tablas!F1391) -> 27.9999999 | I70: =IF($F$18=FALSE,0,Tablas!G1391) -> 27.9999999
D71: PRIMA NETA | F71: =SUM(F66:F70) -> 802.8159971 | G71: =SUM(G66:G70) -> 709.6319975 | H71: 637.9519977 | I71: 587.1226646
F72: 0 | G72: 0 | H72: 0 | I72: 0
D73: Costo Administrativo Anual | F73: 75 | G73: 75 | H73: 75 | I73: 75
D74: IVA (12%) | F74: =+(F71+F72+F73)*0% -> 0 | G74: =+(G71+G72+G73)*0% -> 0 | H74: 0 | I74: 0
D75: 1ra Cuota | F75: =SUM(F71:F74) -> 877.8159971 | G75: =SUM(G71:G74) -> 784.6319975 | H75: =SUM(H71:H74) -> 712.9519977 | I75: =SUM(I71:I74) -> 662.1226646
D76: 2da a 12va Cuota | F76: =F71+F72+F74 -> 802.8159971 | G76: =G71+G72+G74 -> 709.6319975 | H76: 637.9519977 | I76: 587.1226646
D77: TOTAL | F77: =F75+F76*11 -> 9708.791966 | G77: =G75+G76*11 -> 8590.58397 | H77: 7730.423973 | I77: 7120.471975
D79: Tarifas en US $ - Válidas desde 01 Ene 2021
D80: Este presupuesto solamente tiene carácter informativo y en ningún momento expresa compromiso legal para suministrarle cobertura de seguro. La emisión de una póliza de seguro Bupa está sujeta a todas las evaluaciones de riesgo por parte de Bupa y a la recepción de todos los pagos de prima requeridos.
A91: Bupa Guatemala, Compañía de Seguros, S.A.
A92: 5 Avenida 5-55 Zona 14, Europlaza World Business Center, Torre 3, Nivel 11, Guatemala
A93: PBX: 2300-8000 / www.bupasalud.com / servicioguatemala@bupalatinamerica.com

Sheet Advantage (LA) (hidden)
A10: Cotización de Seguro Médico Internacional - Bupa ADVANTAGE Care (cobertura solo Latinoamérica)
A12: Bupa Advantage Care (cobertura solo en Latinoamérica) | H12: =+'INGRESO DE DATOS'!$D$8 -> Nombre
A13: Cobertura Máxima anual | C13: US $ 3,500,000
A14: Cobertura Geografica | C14: Limitada a Latinoamérica excluyendo México | H14: =+'INGRESO DE DATOS'!$D$18 -> Agente / Agencia
A15: Condiciones médicas cubiertas | C15: Todas las condiciones médicas
A16: Redes de proveedores | C16: Red de Proveedores "Bupa Advantage" | J16: =+'INGRESO DE DATOS'!$G$10 -> 2 | M16: =+'INGRESO DE DATOS'!$G$12 -> 32
A17: Opciones fuera de la Red | C17: NO, solo en casos de emergencia | F17: FECHA DE COTIZACION :
A18: Requiere preautorización | C18: SI, 30% de penalización por omitir prenotificación | F18: =NOW() -> 2021-02-25T18:16:34.540 | J18: =+'INGRESO DE DATOS'!$J$10 -> 2 | M18: =+'INGRESO DE DATOS'!$J$12 -> 46
A20: Número máximo de días de hospitalización | C20: Ilimitado | I20: TRUE | K20: COMPLICACIONES DE MATERNIDAD
A21: Habitación y alimentación | C21: 100% dentro de Red Bupa
C22: "UCR" para L.A. en emergencias fuera de Red Bupa | I22: TRUE | K22: TRASPLANTE DE ORGANOS
A23: Cuidados Intensivos | C23: 100% dentro de Red Bupa
C24: "UCR" para L.A. en emergencias fuera de Red Bupa
A25: Cobertura de Maternidad | C25: $5,000 (Excepto planes 4,5, y 6) | F25: Deducibles | H25: PLAN 1 | I25: PLAN 2 | J25: PLAN 3 | K25: PLAN 4 | L25: PLAN 5 | M25: PLAN 6
A26: Cobertura Provisional de Recién Nacido | C26: $30,000 por los primeros 90 días | F26: Dentro del pais de residencia | H26: n/a | I26: 1000 | J26: 2000 | K26: 5000 | L26: 10000 | M26: 20000
A27: Cuidado del Recién Nacido saludable | C27: Ya incluída dentro del beneficio de Maternidad | F27: Fuera del pais de residencia | H27: n/a | I27: 2000 | J27: 3000 | K27: 5000 | L27: 10000 | M27: 20000
A28: Cobertura de Complicaciones de Maternidad | C28: Disponible a través de cobertura opcional adicional
A29: Trasplante de Organos | C29: $1,000,000 de por vida, por diagnóstico
A30: Condiciones congénitas y hereditarias | C30: <18 años $300,000 de por vida; >=18 al 100% | F30: Tarifas Anuales
A31: Coberturas opcionales (Riders) | C31: Complicaciones de Maternidad por $500,000 | F31: Prima de Titular : | H31: n/a | I31: =VLOOKUP($M$16,Tablas!$A$420:$H$443,4,TRUE) -> 4550 | J31: =VLOOKUP($M$16,Tablas!$A$420:$H$443,5,TRUE) -> 3480 | K31: =VLOOKUP($M$16,Tablas!$A$420:$H$443,6,TRUE) -> 2690 | L31: =VLOOKUP($M$16,Tablas!$A$420:$H$443,7,TRUE) -> 2059 | M31: =VLOOKUP($M$16,Tablas!$A$420:$H$443,8,TRUE) -> 1587
C32: Trasplante de órganos por $ 300,000 adicionales | F32: Prima de Cónyuge | H32: n/a | I32: =IF($J$16=1,0,(VLOOKUP($M$18,Tablas!$A$420:$H$443,4,TRUE))) -> 6617 | J32: =IF($J$16=1,0,(VLOOKUP($M$18,Tablas!$A$420:$H$443,5,TRUE))) -> 5063 | K32: =IF($J$16=1,0,(VLOOKUP($M$18,Tablas!$A$420:$H$443,6,TRUE))) -> 3827 | L32: =IF($J$16=1,0,(VLOOKUP($M$18,Tablas!$A$420:$H$443,7,TRUE))) -> 2988 | M32: =IF($J$16=1,0,(VLOOKUP($M$18,Tablas!$A$420:$H$443,8,TRUE))) -> 2317
A33: Acompañamiento de menores hospitalizados | C33: $300 por día | F33: Primas Hijos : | H33: n/a | I33: =IF($J$18=0,0,(VLOOKUP($J$18,Tablas!$A$444:$H$446,4,TRUE))) -> 2567 | J33: =IF($J$18=0,0,(VLOOKUP($J$18,Tablas!$A$444:$H$446,5,TRUE))) -> 1768 | K33: =IF($J$18=0,0,(VLOOKUP($J$18,Tablas!$A$444:$H$446,6,TRUE))) -> 1402 | L33: =IF($J$18=0,0,(VLOOKUP($J$18,Tablas!$A$444:$H$446,7,TRUE))) -> 1246 | M33: =IF($J$18=0,0,(VLOOKUP($J$18,Tablas!$A$444:$H$446,8,TRUE))) -> 837
A34: Ambulancia aérea | C34: $100,000 por año y ticket aéreo de retorno | F34: Prima Rider Complic. Maternidad | H34: n/a | I34: =+IF($I$20=FALSE,0,Tablas!D$447) -> 225 | J34: =+IF($I$20=FALSE,0,Tablas!E$447) -> 225 | K34: =+IF($I$20=FALSE,0,Tablas!F$447) -> 225 | L34: =+IF($I$20=FALSE,0,Tablas!G$447) -> 225 | M34: =+IF($I$20=FALSE,0,Tablas!H$447) -> 225
A35: Repatriación restos mortales | C35: 1 | F35: Prima Rider Trasplante Organos | H35: n/a | I35: =IF($I$22=FALSE,0,Tablas!D$448) -> 300 | J35: =IF($I$22=FALSE,0,Tablas!E$448) -> 300 | K35: =IF($I$22=FALSE,0,Tablas!F$448) -> 300 | L35: =IF($I$22=FALSE,0,Tablas!G$448) -> 300 | M35: =IF($I$22=FALSE,0,Tablas!H$448) -> 300
A36: Medicamentos por receta | C36: $6,000 por Asegurado, por año póliza | F36: TOTAL PRIMA NETA : | H36: n/a | I36: =SUM(I31:I35) -> 14259 | J36: 10836 | K36: 8444 | L36: 6818 | M36: 5266
A37: Almacenamiento de sangre de cordon umbilical | C37: $500 (Excepto planes 4,5, y 6) | F37: Costo Administrativo Anual : | H37: n/a | I37: 75 | J37: 75 | K37: 75 | L37: 75 | M37: 75
F38: GRAN TOTAL : | H38: n/a | I38: =SUM(I36:I37) -> 14334 | J38: =SUM(J36:J37) -> 10911 | K38: =SUM(K36:K37) -> 8519 | L38: =SUM(L36:L37) -> 6893 | M38: =SUM(M36:M37) -> 5341
A39: Atención médica en el hogar | C39: 100% de usual/acostumbrado y razonable
A40: Rehabilitación | C40: 100% de usual/acostumbrado y razonable | F40: Tarifas Semestrales
A41: Residencia y cuidados paliativos | C41: 100% de usual/acostumbrado y razonable | F41: Prima de Titular : | H41: n/a | I41: =VLOOKUP($M$16,Tablas!$A$453:$H$476,4,TRUE) -> 2275 | J41: =VLOOKUP($M$16,Tablas!$A$453:$H$476,5,TRUE) -> 1740 | K41: =VLOOKUP($M$16,Tablas!$A$453:$H$476,6,TRUE) -> 1345 | L41: =VLOOKUP($M$16,Tablas!$A$453:$H$476,7,TRUE) -> 1029.5 | M41: =VLOOKUP($M$16,Tablas!$A$453:$H$476,8,TRUE) -> 793.5
A42: Cobertura de actividades peligrosas | C42: 1 | F42: Prima de Cónyuge | H42: n/a | I42: =IF($J$16=1,0,(VLOOKUP($M$18,Tablas!$A$453:$H$476,4,TRUE))) -> 3308.5 | J42: =IF($J$16=1,0,(VLOOKUP($M$18,Tablas!$A$453:$H$476,5,TRUE))) -> 2531.5 | K42: =IF($J$16=1,0,(VLOOKUP($M$18,Tablas!$A$453:$H$476,6,TRUE))) -> 1913.5 | L42: =IF($J$16=1,0,(VLOOKUP($M$18,Tablas!$A$453:$H$476,7,TRUE))) -> 1494 | M42: =IF($J$16=1,0,(VLOOKUP($M$18,Tablas!$A$453:$H$476,8,TRUE))) -> 1158.5
A43: Chequeos generales de rutina | C43: Hasta US$150 por año póliza.Sin deducible | F43: Primas Hijos : | H43: n/a | I43: =IF($J$18=0,0,(VLOOKUP($J$18,Tablas!$A$477:$H$479,4,TRUE))) -> 1283.5 | J43: =IF($J$18=0,0,(VLOOKUP($J$18,Tablas!$A$477:$H$479,5,TRUE))) -> 884 | K43: =IF($J$18=0,0,(VLOOKUP($J$18,Tablas!$A$477:$H$479,6,TRUE))) -> 701 | L43: =IF($J$18=0,0,(VLOOKUP($J$18,Tablas!$A$477:$H$479,7,TRUE))) -> 623 | M43: =IF($J$18=0,0,(VLOOKUP($J$18,Tablas!$A$477:$H$479,8,TRUE))) -> 418.5
A44: Cobertura de VIH, SIDA, CAS | C44: Solo como efecto de transfusión de sangre | F44: Prima Rider Complic. Maternidad | H44: n/a | I44: =+IF($I$20=FALSE,0,Tablas!D$480) -> 112.5 | J44: =+IF($I$20=FALSE,0,Tablas!E$480) -> 112.5 | K44: =+IF($I$20=FALSE,0,Tablas!F$480) -> 112.5 | L44: =+IF($I$20=FALSE,0,Tablas!G$480) -> 112.5 | M44: =+IF($I$20=FALSE,0,Tablas!H$480) -> 112.5
A45: Cobertura de brazos y piernas artificiales | C45: $30,000 por año y hasta $120,000 de por vida | F45: Prima Rider Trasplante Organos | H45: n/a | I45: =IF($I$22=FALSE,0,Tablas!D$481) -> 150 | J45: =IF($I$22=FALSE,0,Tablas!E$481) -> 150 | K45: =IF($I$22=FALSE,0,Tablas!F$481) -> 150 | L45: =IF($I$22=FALSE,0,Tablas!G$481) -> 150 | M45: =IF($I$22=FALSE,0,Tablas!H$481) -> 150
A46: Cobertura extendida para dependientes en caso de muerte de asegurado principal | C46: 2 años sin costo | F46: TOTAL PRIMA NETA : | H46: n/a | I46: =SUM(I41:I45) -> 7129.5 | J46: 5418 | K46: 4222 | L46: 3409 | M46: 2633
F47: Costo Administrativo Anual : | H47: n/a | I47: 75 | J47: 75 | K47: 75 | L47: 75 | M47: 75
F48: GRAN TOTAL (1ra Cuota) : | H48: n/a | I48: =SUM(I46:I47) -> 7204.5 | J48: =SUM(J46:J47) -> 5493 | K48: =SUM(K46:K47) -> 4297 | L48: =SUM(L46:L47) -> 3484 | M48: =SUM(M46:M47) -> 2708
F49: GRAN TOTAL (2da Cuota) : | H49: n/a | I49: =I46 -> 7129.5 | J49: =J46 -> 5418 | K49: 4222 | L49: 3409 | M49: 2633
F50: Tarifas en US $ - Válidas desde 01 Ene 2013

Sheet Blue 500 (hidden)
A10: Cotización de Seguro Médico Internacional - Bupa Blue 500 Guatemala
A12: Bupa Blue 500 Guatemala | H12: =+'INGRESO DE DATOS'!$D$8 -> Nombre
A13: Cobertura Máxima anual | C13: US$500,000
A14: Cobertura Geografica | C14: Cobertura mundial | H14: =+'INGRESO DE DATOS'!$D$18 -> Agente / Agencia
A15: Condiciones médicas cubiertas | C15: Todas las condiciones médicas
A16: Redes de proveedores | C16: Red de Proveedores Alpha | J16: =+'INGRESO DE DATOS'!$G$10 -> 2 | M16: =+'INGRESO DE DATOS'!$G$12 -> 32
A17: Opciones fuera de la Red | C17: 30%/70% | F17: FECHA DE COTIZACION :
A18: Requiere preautorización | C18: SI, 30% de penalización por omitir prenotificación | F18: =NOW() -> 2021-02-25T18:16:34.540 | J18: =+'INGRESO DE DATOS'!$J$10 -> 2 | M18: =+'INGRESO DE DATOS'!$J$12 -> 46
A20: Número máximo de días de hospitalización | C20: Ilimitado | I20: TRUE | K20: COMPLICACIONES DE MATERNIDAD
A21: Habitación y alimentación | C21: 100% dentro de Red Bupa
C22: 70% fuera de la Red Bupa | I22: TRUE | K22: TRASPLANTE DE ORGANOS
A23: Cuidados Intensivos | C23: 100% dentro de Red Bupa
C24: 70% fuera de la Red Bupa
A25: Cobertura de Maternidad | C25: $3,500 (Excepto planes 4,5, y 6) | F25: Deducibles | I25: PLAN 1 | J25: PLAN 2 | K25: PLAN 3 | L25: PLAN 4 | M25: PLAN 5
A26: Cobertura Provisional de Recién Nacido | C26: $10,000 por los primeros 90 días | F26: Dentro del pais de residencia | I26: 250 | J26: 500 | K26: 1000 | L26: 2000 | M26: 5000
A27: Cuidado del Recién Nacido saludable | C27: 2 visitas por año/ $50 vacunas | F27: Fuera del pais de residencia | I27: 500 | J27: 1000 | K27: 2000 | L27: 4000 | M27: 5000
A28: Cobertura de Complicaciones de Maternidad | C28: 50000
A29: Trasplante de Organos | C29: 250000
A30: Condiciones congénitas y hereditarias | C30: <18 años $75,000 de por vida; >=18 al 100% | F30: Tarifas Anuales
A31: Coberturas opcionales (Riders) | C31: Complicaciones de Maternidad por $500,000 | F31: Prima de Titular : | I31: =VLOOKUP($M$16,Tablas!$A$633:$H$695,4,TRUE) -> 2676.8 | J31: =VLOOKUP($M$16,Tablas!$A$633:$H$695,5,TRUE) -> 2355.2 | K31: =VLOOKUP($M$16,Tablas!$A$633:$H$695,6,TRUE) -> 2107.2 | L31: =VLOOKUP($M$16,Tablas!$A$633:$H$695,7,TRUE) -> 1859.2 | M31: =VLOOKUP($M$16,Tablas!$A$633:$H$695,8,TRUE) -> 0
C32: Trasplante de órganos por $ 500,000 de por vida | F32: Prima de Cónyuge | I32: =IF($J$16=1,0,(VLOOKUP($M$18,Tablas!$A$633:$H$695,4,TRUE))) -> 4004.8 | J32: =IF($J$16=1,0,(VLOOKUP($M$18,Tablas!$A$633:$H$695,5,TRUE))) -> 3523.2 | K32: =IF($J$16=1,0,(VLOOKUP($M$18,Tablas!$A$633:$H$695,6,TRUE))) -> 3152.8 | L32: =IF($J$16=1,0,(VLOOKUP($M$18,Tablas!$A$633:$H$695,7,TRUE))) -> 2781.6 | M32: =IF($J$16=1,0,(VLOOKUP($M$18,Tablas!$A$633:$H$695,8,TRUE))) -> 0
A33: Acompañamiento de menores hospitalizados | C33: No incluye | F33: Primas Hijos : | I33: =IF($J$18=0,0,(VLOOKUP($J$18,Tablas!$A$696:$H$698,4,TRUE))) -> 1620 | J33: =IF($J$18=0,0,(VLOOKUP($J$18,Tablas!$A$696:$H$698,5,TRUE))) -> 1424.8 | K33: =IF($J$18=0,0,(VLOOKUP($J$18,Tablas!$A$696:$H$698,6,TRUE))) -> 1275.2 | L33: =IF($J$18=0,0,(VLOOKUP($J$18,Tablas!$A$696:$H$698,7,TRUE))) -> 1124.8 | M33: =IF($J$18=0,0,(VLOOKUP($J$18,Tablas!$A$696:$H$698,8,TRUE))) -> 0
A34: Ambulancia aérea | C34: 25000 | F34: Prima Rider Complic. Maternidad | I34: =+IF($I$20=FALSE,0,Tablas!D$699) -> 0 | J34: =+IF($I$20=FALSE,0,Tablas!E$699) -> 0 | K34: =+IF($I$20=FALSE,0,Tablas!F$699) -> 0 | L34: =+IF($I$20=FALSE,0,Tablas!G$699) -> 225 | M34: =+IF($I$20=FALSE,0,Tablas!H$699) -> 0
A35: Repatriación restos mortales | C35: 5000 | F35: Prima Rider Trasplante Organos | I35: =IF($I$22=FALSE,0,Tablas!D$700) -> 300 | J35: =IF($I$22=FALSE,0,Tablas!E$700) -> 300 | K35: =IF($I$22=FALSE,0,Tablas!F$700) -> 300 | L35: =IF($I$22=FALSE,0,Tablas!G$700) -> 300 | M35: =IF($I$22=FALSE,0,Tablas!H$700) -> 0
A36: Medicamentos por receta | C36: Si son médicamente prescritos tras una hospitalización o en relación con una cirugía ambulatoria entonces $7,000 por los próximos 6 meses. | F36: TOTAL PRIMA NETA : | I36: =SUM(I31:I35) -> 8601.6 | J36: 7603.2 | K36: 6835.2 | L36: 6290.6 | M36: 0
F37: Costo Administrativo Anual : | I37: 75 | J37: 75 | K37: 75 | L37: 75 | M37: 75
F38: IVA (12%) | I38: =I36*0.12 -> 1032.192 | J38: =J36*0.12 -> 912.384 | K38: 820.224 | L38: 754.872 | M38: 0
F39: GRAN TOTAL : | I39: =SUM(I36:I38) -> 9708.792 | J39: =SUM(J36:J38) -> 8590.584 | K39: 7730.424 | L39: 7120.472 | M39: 75
F41: Tarifas Semestrales
C42: Medicamentos por receta ambulatoria $1,500 | F42: Prima de Titular : | I42: =VLOOKUP($M$16,Tablas!$A$705:$H$767,4,TRUE) -> 1338.4 | J42: =VLOOKUP($M$16,Tablas!$A$705:$H$767,5,TRUE) -> 1177.6 | K42: =VLOOKUP($M$16,Tablas!$A$705:$H$767,6,TRUE) -> 1053.6 | L42: =VLOOKUP($M$16,Tablas!$A$705:$H$767,7,TRUE) -> 929.6 | M42: =VLOOKUP($M$16,Tablas!$A$705:$H$767,8,TRUE) -> 0
F43: Prima de Cónyuge | I43: =IF($J$16=1,0,(VLOOKUP($M$18,Tablas!$A$705:$H$767,4,TRUE))) -> 2002.4 | J43: =IF($J$16=1,0,(VLOOKUP($M$18,Tablas!$A$705:$H$767,5,TRUE))) -> 1761.6 | K43: =IF($J$16=1,0,(VLOOKUP($M$18,Tablas!$A$705:$H$767,6,TRUE))) -> 1576.4 | L43: =IF($J$16=1,0,(VLOOKUP($M$18,Tablas!$A$705:$H$767,7,TRUE))) -> 1390.8 | M43: =IF($J$16=1,0,(VLOOKUP($M$18,Tablas!$A$705:$H$767,8,TRUE))) -> 0
A44: Atención médica en el hogar | C44: $200 por día, hasta 60 días por año por incidente | F44: Primas Hijos : | I44: =IF($J$18=0,0,(VLOOKUP($J$18,Tablas!$A$768:$H$770,4,TRUE))) -> 810 | J44: =IF($J$18=0,0,(VLOOKUP($J$18,Tablas!$A$768:$H$770,5,TRUE))) -> 712.4 | K44: =IF($J$18=0,0,(VLOOKUP($J$18,Tablas!$A$768:$H$770,6,TRUE))) -> 637.6 | L44: =IF($J$18=0,0,(VLOOKUP($J$18,Tablas!$A$768:$H$770,7,TRUE))) -> 562.4 | M44: =IF($J$18=0,0,(VLOOKUP($J$18,Tablas!$A$768:$H$770,8,TRUE))) -> 0
A45: Rehabilitación | C45: 100% de UCR hasta 40 sesiones por año | F45: Prima Rider Complic. Maternidad | I45: =+IF($I$20=FALSE,0,Tablas!D$771) -> 0 | J45: =+IF($I$20=FALSE,0,Tablas!E$771) -> 0 | K45: =+IF($I$20=FALSE,0,Tablas!F$771) -> 0 | L45: =+IF($I$20=FALSE,0,Tablas!G$771) -> 112.5 | M45: =+IF($I$20=FALSE,0,Tablas!H$771) -> 0
A46: Residencia y cuidados paliativos | C46: 100% de usual/acostumbrado y razonable | F46: Prima Rider Trasplante Organos | I46: =IF($I$22=FALSE,0,Tablas!D$772) -> 150 | J46: =IF($I$22=FALSE,0,Tablas!E$772) -> 150 | K46: =IF($I$22=FALSE,0,Tablas!F$772) -> 150 | L46: =IF($I$22=FALSE,0,Tablas!G$772) -> 150 | M46: =IF($I$22=FALSE,0,Tablas!H$772) -> 0
A47: Cobertura de actividades peligrosas | C47: 100% siempre que no sea práctica profesional | F47: TOTAL PRIMA NETA : | I47: =SUM(I42:I46) -> 4300.8 | J47: 3801.6 | K47: 3417.6 | L47: 3145.3 | M47: 0
A48: Cobertura de brazos y piernas artificiales | C48: $30,000 por año y hasta $120,000 de por vida | F48: Costo Administrativo Anual : | I48: 75 | J48: 75 | K48: 75 | L48: 75 | M48: 75
A49: Cobertura extendida para dependientes en caso de muerte de asegurado principal | C49: n/a | F49: IVA (12%) | I49: =I47*0.12 -> 516.096 | J49: =J47*0.12 -> 456.192 | K49: 410.112 | L49: 377.436 | M49: 0
F50: GRAN TOTAL (1ra Cuota) : | I50: =SUM(I47:I49) -> 4891.896 | J50: =SUM(J47:J49) -> 4332.792 | K50: 3902.712 | L50: 3597.736 | M50: 75
F51: GRAN TOTAL (2da Cuota) : | I51: =I47+I49 -> 4816.896 | J51: =J47+J49 -> 4257.792 | K51: 3827.712 | L51: 3522.736 | M51: 0
F52: Tarifas en US $ - Válidas desde 01 Ene 2014

Sheet Blue 100 (hidden)
A10: Cotización de Seguro Médico Internacional - Bupa Blue 100 Guatemala
A12: Bupa Blue 100 Guatemala | H12: =+'INGRESO DE DATOS'!$D$8 -> Nombre
A13: Cobertura Máxima anual | C13: US$100,000
A14: Cobertura Geografica | C14: Cobertura mundial | H14: =+'INGRESO DE DATOS'!$D$18 -> Agente / Agencia
A15: Condiciones médicas cubiertas | C15: Todas las condiciones médicas
A16: Redes de proveedores | C16: Red de Proveedores Alpha | J16: =+'INGRESO DE DATOS'!$G$10 -> 2 | M16: =+'INGRESO DE DATOS'!$G$12 -> 32
A17: Opciones fuera de la Red | C17: 30%/70% | F17: FECHA DE COTIZACION :
A18: Requiere preautorización | C18: Sí, 30% de penalización por omitir prenotificación | F18: =NOW() -> 2021-02-25T18:16:34.540 | J18: =+'INGRESO DE DATOS'!$J$10 -> 2 | M18: =+'INGRESO DE DATOS'!$J$12 -> 46
A20: Número máximo de días de hospitalización | C20: Ilimitado | I20: TRUE | K20: COMPLICACIONES DE MATERNIDAD
A21: Habitación y alimentación | C21: 100% dentro de Red Bupa
C22: 70% fuera de la Red Bupa | I22: TRUE | K22: TRASPLANTE DE ORGANOS
A23: Cuidados Intensivos | C23: 100% dentro de Red Bupa
C24: 70% fuera de la Red Bupa
A25: Cobertura de Maternidad | C25: $3,500 (Excepto planes 4,5, y 6) | F25: Deducibles | I25: PLAN 1 | J25: PLAN 2 | K25: PLAN 3 | L25: PLAN 4 | M25: PLAN 5
A26: Cobertura Provisional de Recién Nacido | C26: $7,500 por los primeros 90 días | F26: Dentro del pais de residencia | I26: 250 | J26: 500 | K26: 1000 | L26: 2000 | M26: 5000
A27: Cuidado del Recién Nacido saludable | C27: 2 visitas por año. $50 vacunas | F27: Fuera del pais de residencia | I27: 500 | J27: 1000 | K27: 2000 | L27: 4000 | M27: 5000
A28: Cobertura de Complicaciones de Maternidad | C28: 25000
A29: Trasplante de Organos | C29: 100000
A30: Condiciones congénitas y hereditarias | C30: <18 años $50,000 de por vida; >=18 al 100% | F30: Tarifas Anuales
A31: Coberturas opcionales (Riders) | C31: Complicaciones de Maternidad por $500,000 | F31: Prima de Titular : | I31: =VLOOKUP($M$16,Tablas!$A$778:$H$840,4,TRUE) -> 1392 | J31: =VLOOKUP($M$16,Tablas!$A$778:$H$840,5,TRUE) -> 1363 | K31: =VLOOKUP($M$16,Tablas!$A$778:$H$840,6,TRUE) -> 1285 | L31: =VLOOKUP($M$16,Tablas!$A$778:$H$840,7,TRUE) -> 1171 | M31: =VLOOKUP($M$16,Tablas!$A$778:$H$840,8,TRUE) -> 965
C32: Trasplante de órganos por $ 500,000 de por vida | F32: Prima de Cónyuge | I32: =IF($J$16=1,0,(VLOOKUP($M$18,Tablas!$A$778:$H$840,4,TRUE))) -> 2059 | J32: =IF($J$16=1,0,(VLOOKUP($M$18,Tablas!$A$778:$H$840,5,TRUE))) -> 2018 | K32: =IF($J$16=1,0,(VLOOKUP($M$18,Tablas!$A$633:$H$656,6,TRUE))) -> 2648.8 | L32: =IF($J$16=1,0,(VLOOKUP($M$18,Tablas!$A$778:$H$840,7,TRUE))) -> 1735 | M32: =IF($J$16=1,0,(VLOOKUP($M$18,Tablas!$A$778:$H$840,8,TRUE))) -> 1494
A33: Acompañamiento de menores hospitalizados | C33: n/a | F33: Primas Hijos : | I33: =IF($J$18=0,0,(VLOOKUP($J$18,Tablas!$A$841:$H$843,4,TRUE))) -> 949 | J33: =IF($J$18=0,0,(VLOOKUP($J$18,Tablas!$A$841:$H$843,5,TRUE))) -> 930 | K33: =IF($J$18=0,0,(VLOOKUP($J$18,Tablas!$A$841:$H$843,6,TRUE))) -> 877 | L33: =IF($J$18=0,0,(VLOOKUP($J$18,Tablas!$A$841:$H$843,7,TRUE))) -> 800 | M33: =IF($J$18=0,0,(VLOOKUP($J$18,Tablas!$A$841:$H$843,8,TRUE))) -> 416
A34: Ambulancia aérea | C34: $10,000 por año y ticket aéreo de retorno | F34: Prima Rider Complic. Maternidad | I34: =+IF($I$20=FALSE,0,Tablas!D$844) -> 225 | J34: =+IF($I$20=FALSE,0,Tablas!E$844) -> 225 | K34: =+IF($I$20=FALSE,0,Tablas!F$844) -> 225 | L34: =+IF($I$20=FALSE,0,Tablas!G$844) -> 225 | M34: =+IF($I$20=FALSE,0,Tablas!H$844) -> 225
A35: Repatriación restos mortales | C35: 5000 | F35: Prima Rider Trasplante Organos | I35: =IF($I$22=FALSE,0,Tablas!D$845) -> 300 | J35: =IF($I$22=FALSE,0,Tablas!E$845) -> 300 | K35: =IF($I$22=FALSE,0,Tablas!F$845) -> 300 | L35: =IF($I$22=FALSE,0,Tablas!G$845) -> 300 | M35: =IF($I$22=FALSE,0,Tablas!H$845) -> 300
A36: Medicamentos por receta | C36: Si son médicamente prescritos tras una hospitalización o en relación con una cirugía ambulatoria entonces $6,000 por los próximos 6 meses. | F36: TOTAL PRIMA NETA : | I36: =SUM(I31:I35) -> 4925 | J36: 4836 | K36: 5335.8 | L36: 4231 | M36: 3400
F37: Costo Administrativo Anual : | I37: 75 | J37: 75 | K37: 75 | L37: 75 | M37: 75
F38: IVA (12%) | I38: =I36*0.12 -> 591 | J38: =J36*0.12 -> 580.32 | K38: 640.296 | L38: 507.72 | M38: 408
F39: GRAN TOTAL : | I39: =SUM(I36:I38) -> 5591 | J39: =SUM(J36:J38) -> 5491.32 | K39: 6051.096 | L39: 4813.72 | M39: 3883
F41: Tarifas Semestrales
C42: Tratamiento Ambulatorio a US$1,500 | F42: Prima de Titular : | I42: =VLOOKUP($M$16,Tablas!$A$850:$H$912,4,TRUE) -> 696 | J42: =VLOOKUP($M$16,Tablas!$A$850:$H$912,5,TRUE) -> 681.5 | K42: =VLOOKUP($M$16,Tablas!$A$850:$H$912,6,TRUE) -> 642.5 | L42: =VLOOKUP($M$16,Tablas!$A$850:$H$912,7,TRUE) -> 585.5 | M42: =VLOOKUP($M$16,Tablas!$A$850:$H$912,8,TRUE) -> 482.5
F43: Prima de Cónyuge | I43: =IF($J$16=1,0,(VLOOKUP($M$18,Tablas!$A$850:$H$912,4,TRUE))) -> 1029.5 | J43: =IF($J$16=1,0,(VLOOKUP($M$18,Tablas!$A$850:$H$912,5,TRUE))) -> 1009 | K43: =IF($J$16=1,0,(VLOOKUP($M$18,Tablas!$A$850:$H$912,6,TRUE))) -> 950.5 | L43: =IF($J$16=1,0,(VLOOKUP($M$18,Tablas!$A$850:$H$912,7,TRUE))) -> 867.5 | M43: =IF($J$16=1,0,(VLOOKUP($M$18,Tablas!$A$850:$H$912,8,TRUE))) -> 747
A44: Atención médica en el hogar | C44: $200 por día, hasta 60 días por año por incidente | F44: Primas Hijos : | I44: =IF($J$18=0,0,(VLOOKUP($J$18,Tablas!$A$913:$H$915,4,TRUE))) -> 474.5 | J44: =IF($J$18=0,0,(VLOOKUP($J$18,Tablas!$A$913:$H$915,5,TRUE))) -> 465 | K44: =IF($J$18=0,0,(VLOOKUP($J$18,Tablas!$A$913:$H$915,6,TRUE))) -> 438.5 | L44: =IF($J$18=0,0,(VLOOKUP($J$18,Tablas!$A$913:$H$915,7,TRUE))) -> 400 | M44: =IF($J$18=0,0,(VLOOKUP($J$18,Tablas!$A$913:$H$915,8,TRUE))) -> 208
A45: Rehabilitación | C45: 100% de UCR hasta 30 sesiones por año | F45: Prima Rider Complic. Maternidad | I45: =+IF($I$20=FALSE,0,Tablas!D$916) -> 112.5 | J45: =+IF($I$20=FALSE,0,Tablas!E$916) -> 112.5 | K45: =+IF($I$20=FALSE,0,Tablas!F$916) -> 112.5 | L45: =+IF($I$20=FALSE,0,Tablas!G$916) -> 112.5 | M45: =+IF($I$20=FALSE,0,Tablas!H$916) -> 112.5
A46: Residencia y cuidados paliativos | C46: 100% de usual/acostumbrado y razonable | F46: Prima Rider Trasplante Organos | I46: =IF($I$22=FALSE,0,Tablas!D$917) -> 150 | J46: =IF($I$22=FALSE,0,Tablas!E$917) -> 150 | K46: =IF($I$22=FALSE,0,Tablas!F$917) -> 150 | L46: =IF($I$22=FALSE,0,Tablas!G$917) -> 150 | M46: =IF($I$22=FALSE,0,Tablas!H$917) -> 150
A47: Cobertura de actividades peligrosas | C47: 100% siempre que no sea práctica profesional | F47: TOTAL PRIMA NETA : | I47: =SUM(I42:I46) -> 2462.5 | J47: 2418 | K47: 2294 | L47: 2115.5 | M47: 1700
A48: Cobertura de brazos y piernas artificiales | C48: $30,000 por año y hasta $120,000 de por vida | F48: Costo Administrativo Anual : | I48: 75 | J48: 75 | K48: 75 | L48: 75 | M48: 75
A49: Cobertura extendida para dependientes en caso de muerte de asegurado principal | C49: n/a | F49: IVA (12%) | I49: =I47*0.12 -> 295.5 | J49: =J47*0.12 -> 290.16 | K49: 275.28 | L49: 253.86 | M49: 204
F50: GRAN TOTAL (1ra Cuota) : | I50: =SUM(I47:I49) -> 2833 | J50: =SUM(J47:J49) -> 2783.16 | K50: 2644.28 | L50: 2444.36 | M50: 1979
F51: GRAN TOTAL (2da Cuota) : | I51: =I47+I49 -> 2758 | J51: =J47+J49 -> 2708.16 | K51: 2569.28 | L51: 2369.36 | M51: 1904
F52: Tarifas en US $ - Válidas desde 01 Ene 2014

Sheet Elite Care
A1: BUPA ELITE CARE | F1: Cotización de Seguro Médico Internacional
F2: Bupa Elite Care
D6: Nombre del Asegurado: | E6: =+'INGRESO DE DATOS'!$D$8 -> Nombre
D8: Intermediario: | E8: =+'INGRESO DE DATOS'!$D$18 -> Agente / Agencia
D10: Fecha: | E10: =+TODAY() -> 2021-02-25 | G10: =IF('INGRESO DE DATOS'!G14>0,"Descuento","") ->  | H10: =IF('INGRESO DE DATOS'!G14>0,'INGRESO DE DATOS'!G14,"") -> 
F12: Numero de Adultos: | G12: =+'INGRESO DE DATOS'!$G$10 -> 2 | I12: Edad de Titular: | J12: =+'INGRESO DE DATOS'!$G$12 -> 32
F14: Numero de Hijos: | G14: =+'INGRESO DE DATOS'!$J$10 -> 2 | I14: Edad de Conyuge: | J14: =+'INGRESO DE DATOS'!$J$12 -> 46
F16: Coberturas Adicionales: | H16: Complicaciones de Maternidad (+ $500,000)
F17: TRUE
F18: TRUE | H18: Trasplante de Órganos (+ $500,000)
F19: TRUE
H20: Deducible Cero
D22: Deducibles
F23: PLAN 1 | G23: PLAN 2 | H23: PLAN 3 | I23: PLAN 4 | J23: PLAN 5
D24: Dentro del pais de residencia | F24: 1000 | G24: 2000 | H24: 5000 | I24: 10000 | J24: 20000
D25: Fuera del pais de residencia | F25: 2000 | G25: 3000 | H25: 5000 | I25: 10000 | J25: 20000
D27: Tarifas Anuales
D28: Prima Titular | F28: =(VLOOKUP($J$12,Tablas!$A$487:$H$549,4,TRUE))*0.9 -> 4853.52 | G28: =(VLOOKUP($J$12,Tablas!$A$487:$H$549,5,TRUE))*0.9 -> 3052.08 | H28: =(VLOOKUP($J$12,Tablas!$A$487:$H$549,6,TRUE))*0.9 -> 2434.32 | I28: =(VLOOKUP($J$12,Tablas!$A$487:$H$549,7,TRUE))*0.9 -> 2026.08 | J28: =(VLOOKUP($J$12,Tablas!$A$487:$H$549,8,TRUE))*0.9 -> 1483.2
D29: Prima Cónyuge | F29: =(IF($G$12=1,0,(VLOOKUP($J$14,Tablas!$A$487:$H$549,4,TRUE))))*0.9 -> 7365.6 | G29: =(IF($G$12=1,0,(VLOOKUP($J$14,Tablas!$A$487:$H$549,5,TRUE))))*0.9 -> 4568.4 | H29: =(IF($G$12=1,0,(VLOOKUP($J$14,Tablas!$A$487:$H$549,6,TRUE))))*0.9 -> 3677.76 | I29: =(IF($G$12=1,0,(VLOOKUP($J$14,Tablas!$A$487:$H$549,7,TRUE))))*0.9 -> 2942.64 | J29: =(IF($G$12=1,0,(VLOOKUP($J$14,Tablas!$A$487:$H$549,8,TRUE))))*0.9 -> 2237.04
D30: Primas Hijos | F30: =(IF($G$14=0,0,(VLOOKUP($G$14,Tablas!$A$550:$H$552,4,TRUE))))*0.9 -> 2414.88 | G30: =(IF($G$14=0,0,(VLOOKUP($G$14,Tablas!$A$550:$H$552,5,TRUE))))*0.9 -> 1774.08 | H30: =(IF($G$14=0,0,(VLOOKUP($G$14,Tablas!$A$550:$H$552,6,TRUE))))*0.9 -> 1258.56 | I30: =(IF($G$14=0,0,(VLOOKUP($G$14,Tablas!$A$550:$H$552,7,TRUE))))*0.9 -> 1038.24 | J30: =(IF($G$14=0,0,(VLOOKUP($G$14,Tablas!$A$550:$H$552,8,TRUE))))*0.9 -> 909.36
D31: Anexo: Complicaciones de Maternidad | F31: =+IF($F$17=FALSE,0,Tablas!D$553) -> 0 | G31: =+IF($F$17=FALSE,0,Tablas!E$553) -> 0 | H31: =+IF($F$17=FALSE,0,Tablas!F$553) -> 0 | I31: =+IF($F$17=FALSE,0,Tablas!G$553) -> 225 | J31: =+IF($F$17=FALSE,0,Tablas!H$553) -> 225
D32: Anexo: Trasplante Organos | F32: =IF($F$18=FALSE,0,Tablas!D$554) -> 300 | G32: =IF($F$18=FALSE,0,Tablas!E$554) -> 300 | H32: =IF($F$18=FALSE,0,Tablas!F$554) -> 300 | I32: =IF($F$18=FALSE,0,Tablas!G$554) -> 300 | J32: =IF($F$18=FALSE,0,Tablas!H$554) -> 300
D33: Anexo: Deducible Cero | F33: =IF($F$19=FALSE,0,Tablas!D555) -> 45 | G33: =IF($F$19=FALSE,0,Tablas!E555) -> 180 | H33: =IF($F$19=FALSE,0,Tablas!F555) -> 345 | I33: =IF($F$19=FALSE,0,Tablas!G555) -> 775 | J33: =IF($F$19=FALSE,0,Tablas!H555) -> 1330
D34: PRIMA NETA | F34: =SUM(F28:F33) -> 14979 | G34: =SUM(G28:G33) -> 9874.56 | H34: 8015.64 | I34: 7306.96 | J34: 6484.6
D35: =IF('INGRESO DE DATOS'!G14>0,"Descuento","") ->  | F35: =IF('INGRESO DE DATOS'!$G$14>0,-(F28+F29+F30)*'INGRESO DE DATOS'!$G$14,0) -> 0 | G35: =IF('INGRESO DE DATOS'!$G$14>0,-(G28+G29+G30)*'INGRESO DE DATOS'!$G$14,0) -> 0 | H35: =IF('INGRESO DE DATOS'!$G$14>0,-(H28+H29+H30)*'INGRESO DE DATOS'!$G$14,0) -> 0 | I35: =IF('INGRESO DE DATOS'!$G$14>0,-(I28+I29+I30)*'INGRESO DE DATOS'!$G$14,0) -> 0 | J35: =IF('INGRESO DE DATOS'!$G$14>0,-(J28+J29+J30)*'INGRESO DE DATOS'!$G$14,0) -> 0
D36: Costo Administrativo Anual | F36: 75 | G36: 75 | H36: 75 | I36: 75 | J36: 75
D37: IVA (12%) | F37: =+(F34+F35+F36)*0% -> 0 | G37: =+(G34+G35+G36)*0% -> 0 | H37: 0 | I37: 0 | J37: 0
D38: TOTAL | F38: =SUM(F34:F37) -> 15054 | G38: =SUM(G34:G37) -> 9949.56 | H38: =SUM(H34:H37) -> 8090.64 | I38: =SUM(I34:I37) -> 7381.96 | J38: =SUM(J34:J37) -> 6559.6
D40: Tarifas Semestrales
D41: Prima Titular | F41: =VLOOKUP($J$12,Tablas!$A$559:$H$621,4,TRUE) -> 2696.4 | G41: =VLOOKUP($J$12,Tablas!$A$559:$H$621,5,TRUE) -> 1695.6 | H41: =VLOOKUP($J$12,Tablas!$A$559:$H$621,6,TRUE) -> 1352.4 | I41: =VLOOKUP($J$12,Tablas!$A$559:$H$621,7,TRUE) -> 1125.6 | J41: =VLOOKUP($J$12,Tablas!$A$559:$H$621,8,TRUE) -> 824
D42: Prima Cónyuge | F42: =IF($G$12=1,0,(VLOOKUP($J$14,Tablas!$A$559:$H$621,4,TRUE))) -> 4092 | G42: =IF($G$12=1,0,(VLOOKUP($J$14,Tablas!$A$559:$H$621,5,TRUE))) -> 2538 | H42: =IF($G$12=1,0,(VLOOKUP($J$14,Tablas!$A$559:$H$621,6,TRUE))) -> 2043.2 | I42: =IF($G$12=1,0,(VLOOKUP($J$14,Tablas!$A$559:$H$621,7,TRUE))) -> 1634.8 | J42: =IF($G$12=1,0,(VLOOKUP($J$14,Tablas!$A$559:$H$621,8,TRUE))) -> 1242.8
D43: Primas Hijos | F43: =IF($G$14=0,0,(VLOOKUP($G$14,Tablas!$A$622:$H$624,4,TRUE))) -> 1341.6 | G43: =IF($G$14=0,0,(VLOOKUP($G$14,Tablas!$A$622:$H$624,5,TRUE))) -> 985.6 | H43: =IF($G$14=0,0,(VLOOKUP($G$14,Tablas!$A$622:$H$624,6,TRUE))) -> 699.2 | I43: =IF($G$14=0,0,(VLOOKUP($G$14,Tablas!$A$622:$H$624,7,TRUE))) -> 576.8 | J43: =IF($G$14=0,0,(VLOOKUP($G$14,Tablas!$A$622:$H$624,8,TRUE))) -> 505.2
D44: Anexo: Complicaciones de Maternidad | F44: =+IF($F$17=FALSE,0,Tablas!D$625) -> 0 | G44: =+IF($F$17=FALSE,0,Tablas!E$625) -> 0 | H44: =+IF($F$17=FALSE,0,Tablas!F$625) -> 0 | I44: =+IF($F$17=FALSE,0,Tablas!G$625) -> 112.5 | J44: =+IF($F$17=FALSE,0,Tablas!H$625) -> 112.5
D45: Anexo: Trasplante Organos | F45: =IF($F$18=FALSE,0,Tablas!D$626) -> 150 | G45: =IF($F$18=FALSE,0,Tablas!E$626) -> 150 | H45: =IF($F$18=FALSE,0,Tablas!F$626) -> 150 | I45: =IF($F$18=FALSE,0,Tablas!G$626) -> 150 | J45: =IF($F$18=FALSE,0,Tablas!H$626) -> 150
D46: Anexo: Deducible Cero | F46: =IF($F$19=FALSE,0,Tablas!D627) -> 22.5 | G46: =IF($F$19=FALSE,0,Tablas!E627) -> 90 | H46: =IF($F$19=FALSE,0,Tablas!F627) -> 172.5 | I46: =IF($F$19=FALSE,0,Tablas!G627) -> 387.5 | J46: =IF($F$19=FALSE,0,Tablas!H627) -> 665
D47: PRIMA NETA | F47: =SUM(F41:F46) -> 8302.5 | G47: =SUM(G41:G46) -> 5459.2 | H47: 4417.3 | I47: 3987.2 | J47: 3499.5
D48: =IF('INGRESO DE DATOS'!G14>0,"Descuento","") ->  | F48: =IF('INGRESO DE DATOS'!$G$14>0,-(F41+F42+F43)*'INGRESO DE DATOS'!$G$14,0) -> 0 | G48: =IF('INGRESO DE DATOS'!$G$14>0,-(G41+G42+G43)*'INGRESO DE DATOS'!$G$14,0) -> 0 | H48: =IF('INGRESO DE DATOS'!$G$14>0,-(H41+H42+H43)*'INGRESO DE DATOS'!$G$14,0) -> 0 | I48: =IF('INGRESO DE DATOS'!$G$14>0,-(I41+I42+I43)*'INGRESO DE DATOS'!$G$14,0) -> 0 | J48: =IF('INGRESO DE DATOS'!$G$14>0,-(J41+J42+J43)*'INGRESO DE DATOS'!$G$14,0) -> 0
D49: Costo Administrativo Anual | F49: 75 | G49: 75 | H49: 75 | I49: 75 | J49: 75
D50: IVA (12%) | F50: =+(F47+F48+F49)*0% -> 0 | G50: =+(G47+G48+G49)*0% -> 0 | H50: 0 | I50: 0 | J50: 0
D51: 1ra Cuota | F51: =SUM(F47:F50) -> 8377.5 | G51: =SUM(G47:G50) -> 5534.2 | H51: =SUM(H47:H50) -> 4492.3 | I51: =SUM(I47:I50) -> 4062.2 | J51: =SUM(J47:J50) -> 3574.5
D52: 2da Cuota | F52: =F47+F48+F50 -> 8302.5 | G52: =G47+G48+G50 -> 5459.2 | H52: 4417.3 | I52: 3987.2 | J52: 3499.5
D53: TOTAL | F53: =F51+F52 -> 16680 | G53: =G51+G52 -> 10993.4 | H53: 8909.6 | I53: 8049.4 | J53: 7074
D55: Tarifas Trimestrales
D56: Prima Titular | F56: =VLOOKUP($J$12,Tablas!$A$1065:$H$1127,4,TRUE) -> 1348.2 | G56: =VLOOKUP($J$12,Tablas!$A$1065:$H$1127,5,TRUE) -> 847.8 | H56: =VLOOKUP($J$12,Tablas!$A$1065:$H$1127,6,TRUE) -> 676.2 | I56: =VLOOKUP($J$12,Tablas!$A$1065:$H$1127,7,TRUE) -> 562.8 | J56: =VLOOKUP($J$12,Tablas!$A$1065:$H$1127,8,TRUE) -> 412
D57: Prima Cónyuge | F57: =IF($G$12=1,0,(VLOOKUP($J$14,Tablas!$A$1065:$H$1127,4,TRUE))) -> 2046 | G57: =IF($G$12=1,0,(VLOOKUP($J$14,Tablas!$A$1065:$H$1127,5,TRUE))) -> 1269 | H57: =IF($G$12=1,0,(VLOOKUP($J$14,Tablas!$A$1065:$H$1127,6,TRUE))) -> 1021.6 | I57: =IF($G$12=1,0,(VLOOKUP($J$14,Tablas!$A$1065:$H$1127,7,TRUE))) -> 817.4 | J57: =IF($G$12=1,0,(VLOOKUP($J$14,Tablas!$A$1065:$H$1127,8,TRUE))) -> 621.4
D58: Primas Hijos | F58: =IF($G$14=0,0,(VLOOKUP($G$14,Tablas!$A$1128:$H$1130,4,TRUE))) -> 670.8 | G58: =IF($G$14=0,0,(VLOOKUP($G$14,Tablas!$A$1128:$H$1130,5,TRUE))) -> 492.8 | H58: =IF($G$14=0,0,(VLOOKUP($G$14,Tablas!$A$1128:$H$1130,6,TRUE))) -> 349.6 | I58: =IF($G$14=0,0,(VLOOKUP($G$14,Tablas!$A$1128:$H$1130,7,TRUE))) -> 288.4 | J58: =IF($G$14=0,0,(VLOOKUP($G$14,Tablas!$A$1128:$H$1130,8,TRUE))) -> 252.6
D59: Anexo: Complicaciones de Maternidad | F59: =+IF($F$17=FALSE,0,Tablas!D$1131) -> 0 | G59: =+IF($F$17=FALSE,0,Tablas!E$1131) -> 0 | H59: =+IF($F$17=FALSE,0,Tablas!F$1131) -> 0 | I59: =+IF($F$17=FALSE,0,Tablas!G$1131) -> 56.25 | J59: =+IF($F$17=FALSE,0,Tablas!H$1131) -> 56.25
D60: Anexo: Trasplante Organos | F60: =IF($F$18=FALSE,0,Tablas!D$1132) -> 75 | G60: =IF($F$18=FALSE,0,Tablas!E$1132) -> 75 | H60: =IF($F$18=FALSE,0,Tablas!F$1132) -> 75 | I60: =IF($F$18=FALSE,0,Tablas!G$1132) -> 75 | J60: =IF($F$18=FALSE,0,Tablas!H$1132) -> 75
D61: Anexo: Deducible Cero | F61: =IF($F$19=FALSE,0,Tablas!D1133) -> 11.25 | G61: =IF($F$19=FALSE,0,Tablas!E1133) -> 45 | H61: =IF($F$19=FALSE,0,Tablas!F1133) -> 86.25 | I61: =IF($F$19=FALSE,0,Tablas!G1133) -> 193.75 | J61: =IF($F$19=FALSE,0,Tablas!H1133) -> 332.5
D62: PRIMA NETA | F62: =SUM(F56:F61) -> 4151.25 | G62: =SUM(G56:G61) -> 2729.6 | H62: 2208.65 | I62: 1993.6 | J62: 1749.75
D63: =IF('INGRESO DE DATOS'!G28>0,"Descuento","") ->  | F63: =IF('INGRESO DE DATOS'!$G$14>0,-(F56+F57+F58)*'INGRESO DE DATOS'!$G$14,0) -> 0 | G63: =IF('INGRESO DE DATOS'!$G$14>0,-(G56+G57+G58)*'INGRESO DE DATOS'!$G$14,0) -> 0 | H63: =IF('INGRESO DE DATOS'!$G$14>0,-(H56+H57+H58)*'INGRESO DE DATOS'!$G$14,0) -> 0 | I63: =IF('INGRESO DE DATOS'!$G$14>0,-(I56+I57+I58)*'INGRESO DE DATOS'!$G$14,0) -> 0 | J63: =IF('INGRESO DE DATOS'!$G$14>0,-(J56+J57+J58)*'INGRESO DE DATOS'!$G$14,0) -> 0
D64: Costo Administrativo Anual | F64: 75 | G64: 75 | H64: 75 | I64: 75 | J64: 75
D65: IVA (12%) | F65: =+(F62+F63+F64)*0% -> 0 | G65: =+(G62+G63+G64)*0% -> 0 | H65: 0 | I65: 0 | J65: 0
D66: 1ra Cuota | F66: =SUM(F62:F65) -> 4226.25 | G66: =SUM(G62:G65) -> 2804.6 | H66: =SUM(H62:H65) -> 2283.65 | I66: =SUM(I62:I65) -> 2068.6 | J66: =SUM(J62:J65) -> 1824.75
D67: 2da a 4ta Cuota | F67: =F62+F63+F65 -> 4151.25 | G67: =G62+G63+G65 -> 2729.6 | H67: 2208.65 | I67: 1993.6 | J67: 1749.75
D68: TOTAL | F68: =F66+F67*3 -> 16680 | G68: =G66+G67*3 -> 10993.4 | H68: 8909.6 | I68: 8049.4 | J68: 7074
D70: Tarifas Mensuales
D71: Prima Titular | F71: =VLOOKUP($J$12,Tablas!$A$1398:$H$1466,4,TRUE) -> 503.3279982 | G71: =VLOOKUP($J$12,Tablas!$A$1398:$H$1466,5,TRUE) -> 316.5119989 | H71: =VLOOKUP($J$12,Tablas!$A$1398:$H$1466,6,TRUE) -> 252.4479991 | I71: =VLOOKUP($J$12,Tablas!$A$1398:$H$1466,7,TRUE) -> 210.1119992 | J71: =VLOOKUP($J$12,Tablas!$A$1398:$H$1466,8,TRUE) -> 153.8133328
D72: Prima Cónyuge | F72: =IF($G$12=1,0,(VLOOKUP($J$14,Tablas!$A$1398:$H$1466,4,TRUE))) -> 763.8399973 | G72: =IF($G$12=1,0,(VLOOKUP($J$14,Tablas!$A$1398:$H$1466,5,TRUE))) -> 473.7599983 | H72: =IF($G$12=1,0,(VLOOKUP($J$14,Tablas!$A$1398:$H$1466,6,TRUE))) -> 381.397332 | I72: =IF($G$12=1,0,(VLOOKUP($J$14,Tablas!$A$1398:$H$1466,7,TRUE))) -> 305.1626656 | J72: =IF($G$12=1,0,(VLOOKUP($J$14,Tablas!$A$1398:$H$1466,8,TRUE))) -> 231.9893325
D73: Primas Hijos | F73: =IF($G$14=0,0,(VLOOKUP($G$14,Tablas!$A$1461:$H$1463,4,TRUE))) -> 250.4319991 | G73: =IF($G$14=0,0,(VLOOKUP($G$14,Tablas!$A$1461:$H$1463,5,TRUE))) -> 183.978666 | H73: =IF($G$14=0,0,(VLOOKUP($G$14,Tablas!$A$1461:$H$1463,6,TRUE))) -> 130.5173329 | I73: =IF($G$14=0,0,(VLOOKUP($G$14,Tablas!$A$1461:$H$1463,7,TRUE))) -> 107.6693329 | J73: =IF($G$14=0,0,(VLOOKUP($G$14,Tablas!$A$1461:$H$1463,8,TRUE))) -> 94.30399966
D74: Anexo: Complicaciones de Maternidad | F74: =+IF($F$17=FALSE,0,Tablas!D1464) -> 0 | G74: =+IF($F$17=FALSE,0,Tablas!E1464) -> 0 | H74: =+IF($F$17=FALSE,0,Tablas!F1464) -> 0 | I74: =+IF($F$17=FALSE,0,Tablas!G1464) -> 20.99999993 | J74: =+IF($F$17=FALSE,0,Tablas!H1464) -> 20.99999993
D75: Anexo: Trasplante Organos | F75: =IF($F$18=FALSE,0,Tablas!D1465) -> 27.9999999 | G75: =IF($F$18=FALSE,0,Tablas!E1465) -> 27.9999999 | H75: =IF($F$18=FALSE,0,Tablas!F1465) -> 27.9999999 | I75: =IF($F$18=FALSE,0,Tablas!G1465) -> 27.9999999 | J75: =IF($F$18=FALSE,0,Tablas!H1465) -> 27.9999999
D76: Anexo: Deducible Cero | F76: =IF($F$19=FALSE,0,Tablas!D1466) -> 4.199999985 | G76: =IF($F$19=FALSE,0,Tablas!E1466) -> 16.79999994 | H76: =IF($F$19=FALSE,0,Tablas!F1466) -> 32.19999989 | I76: =IF($F$19=FALSE,0,Tablas!G1466) -> 72.33333307 | J76: =IF($F$19=FALSE,0,Tablas!H1466) -> 124.1333329
D77: PRIMA NETA | F77: =SUM(F71:F76) -> 1549.799994 | G77: =SUM(G71:G76) -> 1019.050663 | H77: 824.5626637 | I77: 744.2773307 | J77: 653.2399977
F78: 0 | G78: 0 | H78: 0 | I78: 0 | J78: 0
D79: Costo Administrativo Anual | F79: 75 | G79: 75 | H79: 75 | I79: 75 | J79: 75
D80: IVA (12%) | F80: =+(F77+F78+F79)*0% -> 0 | G80: =+(G77+G78+G79)*0% -> 0 | H80: 0 | I80: 0 | J80: 0
D81: 1ra Cuota | F81: =SUM(F77:F80) -> 1624.799994 | G81: =SUM(G77:G80) -> 1094.050663 | H81: =SUM(H77:H80) -> 899.5626637 | I81: =SUM(I77:I80) -> 819.2773307 | J81: =SUM(J77:J80) -> 728.2399977
D82: 2da a 12va Cuota | F82: =F77+F78+F80 -> 1549.799994 | G82: =G77+G78+G80 -> 1019.050663 | H82: 824.5626637 | I82: 744.2773307 | J82: 653.2399977
D83: TOTAL | F83: =F81+F82*11 -> 18672.59993 | G83: =G81+G82*11 -> 12303.60796 | H83: 9969.751965 | I83: 9006.327968 | J83: 7913.879972
D85: Tarifas en US $ - Efectivas partir del 1ro de enero de 2021
D86: Este presupuesto solamente tiene carácter informativo y en ningún momento expresa compromiso legal para suministrarle cobertura de seguro. La emisión de una póliza de seguro Bupa está sujeta a todas las evaluaciones de riesgo por parte de Bupa y a la recepción de todos los pagos de prima requeridos.
A116: Bupa Guatemala, Compañía de Seguros, S.A.
A117: 5 Avenida 5-55 Zona 14, Europlaza World Business Center, Torre 3, Nivel 11, Guatemala
A118: PBX: 2300-8000 / www.bupasalud.com / servicioguatemala@bupalatinamerica.com

Sheet Resumen tarifas anuales
A1: Cotización de Seguro Médico Internacional - BUPA Guatemala
C7: Nombre del Asegurado: | D7: =+'INGRESO DE DATOS'!$D$8 -> Nombre
C9: Intermediario: | D9: =+'INGRESO DE DATOS'!$D$18 -> Agente / Agencia
C11: Fecha: | D11: =+TODAY() -> 2021-02-25 | F11: =IF('INGRESO DE DATOS'!G14>0,"Descuento","") ->  | G11: =IF('INGRESO DE DATOS'!G14>0,'INGRESO DE DATOS'!G14,"") -> 
E13: Numero de Adultos: | F13: =+'INGRESO DE DATOS'!$G$10 -> 2 | H13: Edad de Titular: | I13: =+'INGRESO DE DATOS'!$G$12 -> 32
E15: Numero de Hijos: | F15: =+'INGRESO DE DATOS'!$J$10 -> 2 | H15: Edad de Conyuge: | I15: =+'INGRESO DE DATOS'!$J$12 -> 46
C20: ESSENTIAL CARE
C21: Deducibles
E22: PLAN 1 | F22: PLAN 2 | G22: PLAN 3 | H22: PLAN 4
C23: Dentro del pais de residencia | E23: 0 | F23: 0 | G23: 500 | H23: 2000
C24: Fuera del pais de residencia | E24: 1000 | F24: 2000 | G24: 3000 | H24: 5000
C27: Tarifas Anuales
C28: ESSENTIAL CARE | E28: 17428 | F28: 12063 | G28: 8830 | H28: 6503
C31: Tarifas Semestrales
C32: ESSENTIAL CARE | D32: 1ra Cuota | E32: 9272.09 | F32: 6428.64 | G32: 4715.15 | H32: 3481.84
D33: 2da Cuota | E33: 9188.09 | F33: 6344.64 | G33: 4631.15 | H33: 3397.84
C35: Tarifas Trimestrales
C36: ESSENTIAL CARE | D36: 1ra Cuota | E36: 4847.075 | F36: 3849.06 | G36: 2857.22 | H36: 2165.53
D37: 2da a 4ta Cuota | E37: 4763.075 | F37: 3765.06 | G37: 2773.22 | H37: 2081.53
C39: Tarifas Mensual
C40: ESSENTIAL CARE | D40: 1ra Cuota | E40: 1694.55549 | F40: 1193.84004 | G40: 892.10415 | H40: 674.92524
D41: 2da a 12va Cuota | E41: 1610.55549 | F41: 1109.84004 | G41: 808.10415 | H41: 590.92524
C44: UNIQUE CARE
C45: Deducibles
E46: PLAN 1 | F46: PLAN 2 | G46: PLAN 3 | H46: PLAN 4 | I46: PLAN 5
C47: Dentro del pais de residencia | E47: 250 | F47: 1000 | G47: 2000 | H47: 5000 | I47: 10000
C48: Fuera del pais de residencia | E48: 1000 | F48: 2000 | G48: 3000 | H48: 5000 | I48: 10000
C51: Tarifas Anuales
C52: UNIQUE CARE | E52: 10993 | F52: 8520 | G52: 7029 | H52: 6415 | I52: 6150
C55: Tarifas Semestrales
C56: UNIQUE CARE | D56: 1ra Cuota | E56: 5861.54 | F56: 4550.85 | G56: 3760.62 | H56: 3435.2 | I56: 3294.75
D57: 2da Cuota | E57: 5777.54 | F57: 4466.85 | G57: 3676.62 | H57: 3351.2 | I57: 3210.75
C59: Tarifas Trimestrales
C60: UNIQUE CARE | D60: 1ra Cuota | E60: 3077.45 | F60: 2397.375 | G60: 1987.35 | H60: 1818.5 | I60: 1745.625
D61: 2da a 4ta Cuota | E61: 2993.45 | F61: 2313.375 | G61: 1903.35 | H61: 1734.5 | I61: 1661.625
C63: Tarifas Mensuales
C64: UNIQUE CARE | D64: 1ra Cuota | E64: 1222.05429 | F64: 1021.22475 | G64: 960.18782 | H64: 1003.71005 | I64: 1115.2301
D65: 2da a 12va Cuota | E65: 1138.05429 | F65: 937.22475 | G65: 876.18782 | H65: 919.71005 | I65: 1031.2301
C68: UNIQUE CARE - DEDUCIBLE CERO
C69: Deducibles
E70: PLAN 1 | F70: PLAN 2 | G70: PLAN 3 | H70: PLAN 4
C71: Dentro del pais de residencia | E71: 0 | F71: 0 | G71: 0 | H71: 0
C72: Fuera del pais de residencia | E72: 1000 | F72: 2000 | G72: 3000 | H72: 5000
C75: Tarifas Anuales
C76: UNIQUE CARE - DEDUCIBLE CERO | E76: 9400 | F76: 7165 | G76: 5702 | H76: 5042
C79: Tarifas Semestrales
C80: UNIQUE CARE -DEDUCIBLE CERO | D80: 1ra Cuota | E80: 5017.25 | F80: 3832.7 | G80: 3057.31 | H80: 2707.51
D81: 2da Cuota | E81: 4933.25 | F81: 3748.7 | G81: 2973.31 | H81: 2623.51
C83: Tarifas Trimestrales
C84: UNIQUE CARE -DEDUCIBLE CERO | D84: 1ra Cuota | E84: 2715.875 | F84: 2101.25 | G84: 1698.925 | H84: 1517.425
D85: 2da a 4ta Cuota | E85: 2631.875 | F85: 2017.25 | G85: 1614.925 | H85: 1433.425
C87: Tarifas Mensuales
C88: UNIQUE CARE -DEDUCIBLE CERO | D88: 1ra Cuota | E88: 1117.179 | F88: 908.58645 | G88: 772.04466 | H88: 710.44686
D89: 2da a 4ta Cuota | E89: 1033.179 | F89: 824.58645 | G89: 688.04466 | H89: 626.44686
C92: ELITE CARE
C93: Deducibles
E94: PLAN 1 | F94: PLAN 2 | G94: PLAN 3 | H94: PLAN 4 | I94: PLAN 5
C95: Dentro del pais de residencia | E95: 1000 | F95: 2000 | G95: 5000 | H95: 10000 | I95: 20000
C96: Fuera del pais de residencia | E96: 2000 | F96: 3000 | G96: 5000 | H96: 10000 | I96: 20000
C99: Tarifas Anuales
C100: ELITE CARE | E100: 6940 | F100: 5260 | G100: 3798 | H100: 3001 | I100: 2290
C103: Tarifas Semestrales
C104: ELITE CARE | D104: 1ra Cuota | E104: 3713.45 | F104: 2823.05 | G104: 2048.19 | H104: 1625.78 | I104: 1248.95
D105: 2da Cuota | E105: 3629.45 | F105: 2739.05 | G105: 1964.19 | H105: 1541.78 | I105: 1164.95
C107: Tarifas Trimestrales
C108: ELITE CARE | D108: 1ra Cuota | E108: 1962.875 | F108: 1500.875 | G108: 1098.825 | H108: 879.65 | I108: 684.125
D109: 2da a 4ta Cuota | E109: 1878.875 | F109: 1416.875 | G109: 1014.825 | H109: 795.65 | I109: 600.125
C111: Tarifas Mensuales
C112: ELITE CARE | D112: 1ra Cuota | E112: 811.0872 | F112: 654.2928 | G112: 517.84434 | H112: 443.46033 | I112: 377.1027
D113: 2da a 4ta Cuota | E113: 727.0872 | F113: 570.2928 | G113: 433.84434 | H113: 359.46033 | I113: 293.1027
C115: Tarifas en US $ - Efectivas a partir del 1ro de enero de 2021
C116: Este presupuesto solamente tiene carácter informativo y en ningún momento expresa compromiso legal para suministrarle cobertura de seguro. La emisión de una póliza de seguro Bupa está sujeta a todas las evaluaciones de riesgo por parte de Bupa y a la recepción de todos los pagos de prima requeridos.
C119: Bupa Guatemala, Compañía de Seguros, S.A.
C120: 5 Avenida 5-55 Zona 14, Europlaza World Business Center, Torre 3, Nivel 11, Guatemala
C121: PBX: 2300-8000 / www.bupasalud.com / servicioguatemala@bupalatinamerica.com

Sheet Tablas (hidden)
A2: BUPA ESSENTIAL CARE | J2: FACTOR SEMESTRAL : | L2: 0.5 | N2: 0.53
A3: TARIFAS ANUALES | J3: FACTOR TRIMESTRAL : | L3: 0.25 | N3: 0.275
A4: EDAD | J4: FACTOR MENSUAL: | L4: 0.093333333 | N4: 0.093333333
D5: DW2 | E5: DW3 | F5: DW4 | G5: DW5
A6: 18 | B6: - 24 | D6: 1450 | E6: 1317 | F6: 1196 | G6: 1031 | J6: Descuento (15%) | L6: 1 | N6: 1
A7: 25 | B7: - 29 | D7: 1632 | E7: 1482 | F7: 1346 | G7: 1160 | J7: Descuento (20%) | L7: =100%-20% -> 0.8 | N7: =100%-20% -> 0.8
A8: 30 | B8: - 34 | D8: 1829 | E8: 1661 | F8: 1509 | G8: 1301
A9: 35 | B9: - 39 | D9: 2088 | E9: 1896 | F9: 1723 | G9: 1485
A10: 40 | B10: - 44 | D10: 2421 | E10: 2198 | F10: 1997 | G10: 1722
A11: 45 | B11: - 49 | D11: 2894 | E11: 2628 | F11: 2388 | G11: 2058
A12: 50 | B12: - 54 | D12: 3453 | E12: 3135 | F12: 2849 | G12: 2455
A13: 55 | B13: - 59 | D13: 4110 | E13: 3732 | F13: 3391 | G13: 2923
A14: 60 | D14: 4560 | E14: 4140 | F14: 3762 | G14: 3242
A15: 61 | D15: 4749 | E15: 4312 | F15: 3918 | G15: 3377
A16: 62 | D16: 4977 | E16: 4519 | F16: 4106 | G16: 3539
A17: 63 | D17: 5225 | E17: 4745 | F17: 4311 | G17: 3716
A18: 64 | D18: 5524 | E18: 5016 | F18: 4557 | G18: 3928
A19: 65 | D19: 5936 | E19: 5390 | F19: 4897 | G19: 4221
A20: 66 | D20: 6413 | E20: 5823 | F20: 5291 | G20: 4560
A21: 67 | D21: 6922 | E21: 6285 | F21: 5711 | G21: 4922
A22: 68 | D22: 7502 | E22: 6811 | F22: 6189 | G22: 5334
A23: 69 | D23: 8188 | E23: 7434 | F23: 6755 | G23: 5822
A24: 70 | D24: 9036 | E24: 8204 | F24: 7455 | G24: 6425
A25: 71 | D25: 10030 | E25: 9107 | F25: 8274 | G25: 7132
A26: 72 | D26: 11095 | E26: 10073 | F26: 9153 | G26: 7889
A27: 73 | D27: 12309 | E27: 11176 | F27: 10155 | G27: 8752
A28: 74 | D28: 13718 | E28: 12456 | F28: 11317 | G28: 9755
A29: 75 | B29: o más | D29: 15370 | E29: 13955 | F29: 12680 | G29: 10929
A30: 1 | B30: Hijo | D30: 512 | E30: 465 | F30: 422 | G30: 364
A31: 2 | B31: Hijos | D31: 790 | E31: 717 | F31: 652 | G31: 562
A32: 3 | B32: Hijos o más | D32: 1147 | E32: 1042 | F32: 947 | G32: 816
A33: 1 | B33: Rider Comp. Maternidad | D33: 0 | E33: 0 | F33: 225 | G33: 225
A34: 1 | B34: Transplante de organos | C34: 0 | D34: 0 | E34: 0 | F34: 0 | G34: 0
A36: TARIFAS SEMESTRALES
A37: EDAD
C38: DW1 | D38: DW2 | E38: DW3 | F38: DW4 | G38: DW5 | H38: DW6
A39: 18 | B39: - 24 | C39: =C6*$L$2 -> 0 | D39: =D6*$L$2 -> 725 | E39: 658.5 | F39: 598 | G39: 515.5 | H39: 0
A40: 25 | B40: - 29 | C40: =C7*$L$2 -> 0 | D40: 816 | E40: 741 | F40: 673 | G40: 580 | H40: 0
A41: 30 | B41: - 34 | C41: =C8*$L$2 -> 0 | D41: 914.5 | E41: 830.5 | F41: 754.5 | G41: 650.5 | H41: 0
A42: 35 | B42: - 39 | C42: =C9*$L$2 -> 0 | D42: 1044 | E42: 948 | F42: 861.5 | G42: 742.5 | H42: 0
A43: 40 | B43: - 44 | C43: =C10*$L$2 -> 0 | D43: 1210.5 | E43: 1099 | F43: 998.5 | G43: 861 | H43: 0
A44: 45 | B44: - 49 | C44: =C11*$L$2 -> 0 | D44: 1447 | E44: 1314 | F44: 1194 | G44: 1029 | H44: 0
A45: 50 | B45: - 54 | C45: =C12*$L$2 -> 0 | D45: 1726.5 | E45: 1567.5 | F45: 1424.5 | G45: 1227.5 | H45: 0
A46: 55 | B46: - 59 | C46: =C13*$L$2 -> 0 | D46: 2055 | E46: 1866 | F46: 1695.5 | G46: 1461.5 | H46: 0
A47: 60 | C47: =C14*$L$2 -> 0 | D47: 2280 | E47: 2070 | F47: 1881 | G47: 1621 | H47: 0
A48: 61 | C48: =C15*$L$2 -> 0 | D48: 2374.5 | E48: 2156 | F48: 1959 | G48: 1688.5 | H48: 0
A49: 62 | C49: =C16*$L$2 -> 0 | D49: 2488.5 | E49: 2259.5 | F49: 2053 | G49: 1769.5 | H49: 0
A50: 63 | C50: =C17*$L$2 -> 0 | D50: 2612.5 | E50: 2372.5 | F50: 2155.5 | G50: 1858 | H50: 0
A51: 64 | C51: =C18*$L$2 -> 0 | D51: 2762 | E51: 2508 | F51: 2278.5 | G51: 1964 | H51: 0
A52: 65 | C52: =C19*$L$2 -> 0 | D52: 2968 | E52: 2695 | F52: 2448.5 | G52: 2110.5 | H52: 0
A53: 66 | C53: =C20*$L$2 -> 0 | D53: 3206.5 | E53: 2911.5 | F53: 2645.5 | G53: 2280 | H53: 0
A54: 67 | C54: =C21*$L$2 -> 0 | D54: 3461 | E54: 3142.5 | F54: 2855.5 | G54: 2461 | H54: 0
A55: 68 | C55: =C22*$L$2 -> 0 | D55: 3751 | E55: 3405.5 | F55: 3094.5 | G55: 2667 | H55: 0
A56: 69 | C56: =C23*$L$2 -> 0 | D56: 4094 | E56: 3717 | F56: 3377.5 | G56: 2911 | H56: 0
A57: 70 | C57: =C24*$L$2 -> 0 | D57: 4518 | E57: 4102 | F57: 3727.5 | G57: 3212.5 | H57: 0
A58: 71 | C58: =C25*$L$2 -> 0 | D58: 5015 | E58: 4553.5 | F58: 4137 | G58: 3566 | H58: 0
A59: 72 | C59: =C26*$L$2 -> 0 | D59: 5547.5 | E59: 5036.5 | F59: 4576.5 | G59: 3944.5 | H59: 0
A60: 73 | C60: =C27*$L$2 -> 0 | D60: 6154.5 | E60: 5588 | F60: 5077.5 | G60: 4376 | H60: 0
A61: 74 | C61: =C28*$L$2 -> 0 | D61: 6859 | E61: 6228 | F61: 5658.5 | G61: 4877.5 | H61: 0
A62: 75 | B62: o más | C62: =C29*$L$2 -> 0 | D62: 7685 | E62: 6977.5 | F62: 6340 | G62: 5464.5 | H62: 0
A63: 1 | B63: Hijo | C63: =C30*$L$2 -> 0 | D63: 256 | E63: 232.5 | F63: 211 | G63: 182 | H63: 0
A64: 2 | B64: Hijos | C64: =C31*$L$2 -> 0 | D64: 395 | E64: 358.5 | F64: 326 | G64: 281 | H64: 0
A65: 3 | B65: Hijos o más | C65: =C32*$L$2 -> 0 | D65: 573.5 | E65: 521 | F65: 473.5 | G65: 408 | H65: 0
A66: 1 | B66: Rider Comp. Maternidad | C66: =+C33*$L$2 -> 0 | D66: 0 | E66: 0 | F66: 112.5 | G66: 112.5 | H66: 0
A67: 1 | B67: Transplante de organos | C67: 0 | D67: 0 | E67: 0 | F67: 0 | G67: 0 | H67: 0
A69: DIAMOND (LATINAMERICA ONLY)
A70: TARIFAS ANUALES
A71: EDAD
C72: DL1 | D72: DL2 | E72: DL3 | F72: DL4 | G72: DL5 | H72: DL6
A73: 18 | B73: - 24 | C73: 4794 | D73: 2952 | E73: 1949 | F73: 1401 | G73: 993 | H73: 779
A74: 25 | B74: - 29 | C74: 5028 | D74: 3097 | E74: 2156 | F74: 1553 | G74: 1103 | H74: 867
A75: 30 | B75: - 34 | C75: 5200 | D75: 3223 | E75: 2312 | F75: 1743 | G75: 1322 | H75: 1041
A76: 35 | B76: - 39 | C76: 5816 | D76: 3609 | E76: 2590 | F76: 1951 | G76: 1483 | H76: 1168
A77: 40 | B77: - 44 | C77: 6733 | D77: 4186 | E77: 2831 | F77: 2168 | G77: 1630 | H77: 1284
A78: 45 | B78: - 49 | C78: 7517 | D78: 4680 | E78: 3168 | F78: 2425 | G78: 1824 | H78: 1436
A79: 50 | B79: - 54 | C79: 9772 | D79: 5991 | E79: 4158 | F79: 3164 | G79: 2578 | H79: 2033
A80: 55 | B80: - 59 | C80: 10394 | D80: 6374 | E80: 4426 | F80: 3365 | G80: 2744 | H80: 2164
A81: 60 | C81: 11056 | D81: 6945 | E81: 4828 | F81: 3871 | G81: 3307 | H81: 2688
A82: 61 | C82: 11876 | D82: 7463 | E82: 5187 | F82: 4159 | G82: 3555 | H82: 2886
A83: 62 | C83: 12994 | D83: 8172 | E83: 5684 | F83: 4557 | G83: 3892 | H83: 3162
A84: 63 | C84: 13812 | D84: 8687 | E84: 6042 | F84: 4844 | G84: 4139 | H84: 3362
A85: 64 | C85: 14936 | D85: 9396 | E85: 6539 | F85: 5242 | G85: 4475 | H85: 3639
A86: 65 | C86: 15651 | D86: 12288 | E86: 8530 | F86: 6629 | G86: 5974 | H86: 5139
A87: 66 | C87: 16363 | D87: 14275 | E87: 9911 | F87: 7703 | G87: 6942 | H87: 5968
A88: 67 | C88: 17867 | D88: 15595 | E88: 10826 | F88: 8416 | G88: 7581 | H88: 6521
A89: 68 | C89: 19780 | D89: 17268 | E89: 11986 | F89: 9320 | G89: 8398 | H89: 7220
A90: 69 | C90: 21758 | D90: 18999 | E90: 13190 | F90: 10254 | G90: 9240 | H90: 7945
A91: 70 | C91: 25748 | D91: 23384 | E91: 16061 | F91: 12071 | G91: 10768 | H91: 9345
A92: 71 | C92: 26759 | D92: 24303 | E92: 16691 | F92: 12545 | G92: 11190 | H92: 9716
A93: 72 | C93: 27512 | D93: 24990 | E93: 17164 | F93: 12900 | G93: 11507 | H93: 9987
A94: 73 | C94: 28525 | D94: 25911 | E94: 17793 | F94: 13375 | G94: 11931 | H94: 10356
A95: 74 | C95: 29026 | D95: 26368 | E95: 18111 | F95: 13609 | G95: 12143 | H95: 10540
A96: 75 | B96: o más | C96: 30287 | D96: 27515 | E96: 18898 | F96: 14204 | G96: 12670 | H96: 11001
A97: 1 | B97: Hijo | C97: 1660 | D97: 1027 | E97: 758 | F97: 629 | G97: 527 | H97: 413
A98: 2 | B98: Hijos | C98: 2608 | D98: 1634 | E98: 1204 | F98: 999 | G98: 841 | H98: 656
A99: 3 | B99: Hijos o más | C99: 3798 | D99: 2395 | E99: 1766 | F99: 1465 | G99: 1234 | H99: 961
A100: 1 | B100: Rider Comp. Maternidad | C100: 0 | D100: 0 | E100: 0 | F100: 225 | G100: 225 | H100: 225
A101: 1 | B101: Transplante de organos | C101: 0 | D101: 0 | E101: 0 | F101: 0 | G101: 0 | H101: 0
A103: TARIFAS SEMESTRALES
A104: EDAD
C105: DL1 | D105: DL2 | E105: DL3 | F105: DL4 | G105: DL5 | H105: DL6
A106: 18 | B106: - 24 | C106: =+C73*$L$2 -> 2397 | D106: 1476 | E106: 974.5 | F106: 700.5 | G106: 496.5 | H106: 389.5
A107: 25 | B107: - 29 | C107: 2514 | D107: 1548.5 | E107: 1078 | F107: 776.5 | G107: 551.5 | H107: 433.5
A108: 30 | B108: - 34 | C108: 2600 | D108: 1611.5 | E108: 1156 | F108: 871.5 | G108: 661 | H108: 520.5
A109: 35 | B109: - 39 | C109: 2908 | D109: 1804.5 | E109: 1295 | F109: 975.5 | G109: 741.5 | H109: 584
A110: 40 | B110: - 44 | C110: 3366.5 | D110: 2093 | E110: 1415.5 | F110: 1084 | G110: 815 | H110: 642
A111: 45 | B111: - 49 | C111: 3758.5 | D111: 2340 | E111: 1584 | F111: 1212.5 | G111: 912 | H111: 718
A112: 50 | B112: - 54 | C112: 4886 | D112: 2995.5 | E112: 2079 | F112: 1582 | G112: 1289 | H112: 1016.5
A113: 55 | B113: - 59 | C113: 5197 | D113: 3187 | E113: 2213 | F113: 1682.5 | G113: 1372 | H113: 1082
A114: 60 | C114: 5528 | D114: 3472.5 | E114: 2414 | F114: 1935.5 | G114: 1653.5 | H114: 1344
A115: 61 | C115: 5938 | D115: 3731.5 | E115: 2593.5 | F115: 2079.5 | G115: 1777.5 | H115: 1443
A116: 62 | C116: =+C83*$L$2 -> 6497 | D116: 4086 | E116: 2842 | F116: 2278.5 | G116: 1946 | H116: 1581
A117: 63 | C117: 6906 | D117: 4343.5 | E117: 3021 | F117: 2422 | G117: 2069.5 | H117: 1681
A118: 64 | C118: 7468 | D118: 4698 | E118: 3269.5 | F118: 2621 | G118: 2237.5 | H118: 1819.5
A119: 65 | C119: 7825.5 | D119: 6144 | E119: 4265 | F119: 3314.5 | G119: 2987 | H119: 2569.5
A120: 66 | C120: 8181.5 | D120: 7137.5 | E120: 4955.5 | F120: 3851.5 | G120: 3471 | H120: 2984
A121: 67 | C121: 8933.5 | D121: 7797.5 | E121: 5413 | F121: 4208 | G121: 3790.5 | H121: 3260.5
A122: 68 | C122: 9890 | D122: 8634 | E122: 5993 | F122: 4660 | G122: 4199 | H122: 3610
A123: 69 | C123: 10879 | D123: 9499.5 | E123: 6595 | F123: 5127 | G123: 4620 | H123: 3972.5
A124: 70 | C124: 12874 | D124: 11692 | E124: 8030.5 | F124: 6035.5 | G124: 5384 | H124: 4672.5
A125: 71 | C125: 13379.5 | D125: 12151.5 | E125: 8345.5 | F125: 6272.5 | G125: 5595 | H125: 4858
A126: 72 | C126: =+C93*$L$2 -> 13756 | D126: 12495 | E126: 8582 | F126: 6450 | G126: 5753.5 | H126: 4993.5
A127: 73 | C127: 14262.5 | D127: 12955.5 | E127: 8896.5 | F127: 6687.5 | G127: 5965.5 | H127: 5178
A128: 74 | C128: 14513 | D128: 13184 | E128: 9055.5 | F128: 6804.5 | G128: 6071.5 | H128: 5270
A129: 75 | B129: o más | C129: 15143.5 | D129: 13757.5 | E129: 9449 | F129: 7102 | G129: 6335 | H129: 5500.5
A130: 1 | B130: Hijo | C130: 830 | D130: 513.5 | E130: 379 | F130: 314.5 | G130: 263.5 | H130: 206.5
A131: 2 | B131: Hijos | C131: 1304 | D131: 817 | E131: 602 | F131: 499.5 | G131: 420.5 | H131: 328
A132: 3 | B132: Hijos o más | C132: 1899 | D132: 1197.5 | E132: 883 | F132: 732.5 | G132: 617 | H132: 480.5
A133: 1 | B133: Rider Comp. Maternidad | C133: 0 | D133: 0 | E133: 0 | F133: 112.5 | G133: 112.5 | H133: 112.5
A134: 1 | B134: Transplante de organos | C134: 0 | D134: 0 | E134: 0 | F134: 0 | G134: 0 | H134: 0
A136: xx
A137: TARIFAS ANUALES
A138: EDAD
C139: CW1 | D139: CW2 | E139: CW3 | F139: CW4 | G139: CW5 | H139: CW6
A140: 18 | B140: - 24 | D140: 3551 | E140: 2780 | F140: 2126 | G140: 1854 | H140: 1389
A141: 25 | B141: - 29 | D141: 3900 | E141: 3127 | F141: 2393 | G141: 2047 | H141: 1545
A142: 30 | B142: - 34 | D142: 4479 | E142: 3668 | F142: 2780 | G142: 2393 | H142: 1816
A143: 35 | B143: - 39 | D143: 4943 | E143: 4131 | F143: 3090 | G143: 2664 | H143: 2006
A144: 40 | B144: - 44 | D144: 5520 | E144: 4711 | F144: 3477 | G144: 3012 | H144: 2279
A145: 45 | B145: - 49 | D145: 6371 | E145: 5520 | F145: 4054 | G145: 3514 | H145: 2626
A146: 50 | B146: - 54 | D146: 6951 | E146: 6062 | F146: 4441 | G146: 3823 | H146: 2896
A147: 55 | B147: - 59 | D147: 8184 | E147: 7256 | F147: 5251 | G147: 4556 | H147: 3399
A148: 60 | D148: 8571 | E148: 7760 | F148: 5560 | G148: 4827 | H148: 3591
A149: 61 | D149: 9652 | E149: 8725 | F149: 6294 | G149: 5406 | H149: 4054
A150: 62 | D150: 10731 | E150: 9690 | F150: 6989 | G150: 6024 | H150: 4517
A151: 63 | D151: 11776 | E151: 10655 | F151: 7683 | G151: 6641 | H151: 4980
A152: 64 | D152: 12855 | E152: 11658 | F152: 8377 | G152: 7256 | H152: 5444
A153: 65 | D153: 12894 | E153: 11735 | F153: 8455 | G153: 7298 | H153: 5444
A154: 66 | D154: 12894 | E154: 11852 | F154: 8493 | G154: 7335 | H154: 5444
A155: 67 | D155: 14321 | E155: 13202 | F155: 9420 | G155: 8145 | H155: 6062
A156: 68 | D156: 15749 | E156: 14514 | F156: 10384 | G156: 8957 | H156: 6681
A157: 69 | D157: 16483 | E157: 15172 | F157: 10849 | G157: 9381 | H157: 6989
A158: 70 | D158: 16522 | E158: 15404 | F158: 10965 | G158: 9457 | H158: 7026
A159: 71 | D159: 18570 | E159: 17373 | F159: 12353 | G159: 10655 | H159: 7916
A160: 72 | D160: 20653 | E160: 19303 | F160: 13703 | G160: 11813 | H160: 8801
A161: 73 | D161: 22739 | E161: 21231 | F161: 15095 | G161: 13009 | H161: 9690
A162: 74 | D162: 24784 | E162: 23162 | F162: 16483 | G162: 14205 | H162: 10579
A163: 75 | B163: o más | D163: 27023 | E163: 25402 | F163: 18027 | G163: 15519 | H163: 11544
A164: 1 | B164: Hijo | D164: 1698 | E164: 1005 | F164: 850 | G164: 734 | H164: 542
A165: 2 | B165: Hijos | D165: 2896 | E165: 1508 | F165: 1352 | G165: 1159 | H165: 850
A166: 3 | B166: Hijos o más | D166: 4246 | E166: 2163 | F166: 1969 | G166: 1698 | H166: 1275
A167: 1 | B167: Rider Comp. Maternidad | C167: 0 | D167: 225 | E167: 225 | F167: 225 | G167: 225 | H167: 225
A168: 1 | B168: Transplante de organos | C168: 0 | D168: 0 | E168: 0 | F168: 0 | G168: 0 | H168: 0
A170: TARIFAS SEMESTRALES
A171: EDAD
C172: CW1 | D172: CW2 | E172: CW3 | F172: CW4 | G172: CW5 | H172: CW6
A173: 18 | B173: - 24 | C173: =C140*$L$2 -> 0 | D173: =D140*$L$2 -> 1775.5 | E173: 1390 | F173: 1063 | G173: 927 | H173: 694.5
A174: 25 | B174: - 29 | C174: =C141*$L$2 -> 0 | D174: 1950 | E174: 1563.5 | F174: 1196.5 | G174: 1023.5 | H174: 772.5
A175: 30 | B175: - 34 | C175: =C142*$L$2 -> 0 | D175: 2239.5 | E175: 1834 | F175: 1390 | G175: 1196.5 | H175: 908
A176: 35 | B176: - 39 | C176: =C143*$L$2 -> 0 | D176: 2471.5 | E176: 2065.5 | F176: 1545 | G176: 1332 | H176: 1003
A177: 40 | B177: - 44 | C177: =C144*$L$2 -> 0 | D177: 2760 | E177: 2355.5 | F177: 1738.5 | G177: 1506 | H177: 1139.5
A178: 45 | B178: - 49 | C178: =C145*$L$2 -> 0 | D178: 3185.5 | E178: 2760 | F178: 2027 | G178: 1757 | H178: 1313
A179: 50 | B179: - 54 | C179: =C146*$L$2 -> 0 | D179: 3475.5 | E179: 3031 | F179: 2220.5 | G179: 1911.5 | H179: 1448
A180: 55 | B180: - 59 | C180: =C147*$L$2 -> 0 | D180: 4092 | E180: 3628 | F180: 2625.5 | G180: 2278 | H180: 1699.5
A181: 60 | C181: =C148*$L$2 -> 0 | D181: 4285.5 | E181: 3880 | F181: 2780 | G181: 2413.5 | H181: 1795.5
A182: 61 | C182: =C149*$L$2 -> 0 | D182: 4826 | E182: 4362.5 | F182: 3147 | G182: 2703 | H182: 2027
A183: 62 | C183: =C150*$L$2 -> 0 | D183: 5365.5 | E183: 4845 | F183: 3494.5 | G183: 3012 | H183: 2258.5
A184: 63 | C184: =C151*$L$2 -> 0 | D184: 5888 | E184: 5327.5 | F184: 3841.5 | G184: 3320.5 | H184: 2490
A185: 64 | C185: =C152*$L$2 -> 0 | D185: 6427.5 | E185: 5829 | F185: 4188.5 | G185: 3628 | H185: 2722
A186: 65 | C186: =C153*$L$2 -> 0 | D186: 6447 | E186: 5867.5 | F186: 4227.5 | G186: 3649 | H186: 2722
A187: 66 | C187: =C154*$L$2 -> 0 | D187: 6447 | E187: 5926 | F187: 4246.5 | G187: 3667.5 | H187: 2722
A188: 67 | C188: =C155*$L$2 -> 0 | D188: 7160.5 | E188: 6601 | F188: 4710 | G188: 4072.5 | H188: 3031
A189: 68 | C189: =C156*$L$2 -> 0 | D189: 7874.5 | E189: 7257 | F189: 5192 | G189: 4478.5 | H189: 3340.5
A190: 69 | C190: =C157*$L$2 -> 0 | D190: 8241.5 | E190: 7586 | F190: 5424.5 | G190: 4690.5 | H190: 3494.5
A191: 70 | C191: =C158*$L$2 -> 0 | D191: 8261 | E191: 7702 | F191: 5482.5 | G191: 4728.5 | H191: 3513
A192: 71 | C192: =C159*$L$2 -> 0 | D192: 9285 | E192: 8686.5 | F192: 6176.5 | G192: 5327.5 | H192: 3958
A193: 72 | C193: =C160*$L$2 -> 0 | D193: 10326.5 | E193: 9651.5 | F193: 6851.5 | G193: 5906.5 | H193: 4400.5
A194: 73 | C194: =C161*$L$2 -> 0 | D194: 11369.5 | E194: 10615.5 | F194: 7547.5 | G194: 6504.5 | H194: 4845
A195: 74 | C195: =C162*$L$2 -> 0 | D195: 12392 | E195: 11581 | F195: 8241.5 | G195: 7102.5 | H195: 5289.5
A196: 75 | B196: o más | C196: =C163*$L$2 -> 0 | D196: 13511.5 | E196: 12701 | F196: 9013.5 | G196: 7759.5 | H196: 5772
A197: 1 | B197: Hijo | C197: =C164*$L$2 -> 0 | D197: 849 | E197: 502.5 | F197: 425 | G197: 367 | H197: 271
A198: 2 | B198: Hijos | C198: =C165*$L$2 -> 0 | D198: 1448 | E198: 754 | F198: 676 | G198: 579.5 | H198: 425
A199: 3 | B199: Hijos o más | C199: =C166*$L$2 -> 0 | D199: 2123 | E199: 1081.5 | F199: 984.5 | G199: 849 | H199: 637.5
A200: 1 | B200: Rider Comp. Maternidad | C200: =+C167*$L$2 -> 0 | D200: 112.5 | E200: 112.5 | F200: 112.5 | G200: 112.5 | H200: 112.5
A201: 1 | B201: Transplante de organos | C201: 0 | D201: 0 | E201: 0 | F201: 0 | G201: 0 | H201: 0
A203: COMPLETE (LATINAMERICA ONLY)
A204: TARIFAS ANUALES
A205: EDAD
C206: CL1 | D206: CL2 | E206: CL3 | F206: CL4 | G206: CL5 | H206: CL6
A207: 18 | B207: - 24 | C207: 4108 | D207: 2493 | E207: 1711 | F207: 1222 | G207: 864 | H207: 656
... 1237 more rows
